Cogmind - Beta 17 @@@ ROGUE MODE // 2026.07.12 @ 17:55:03 Player: Bikerider58 Result: Self-destructed Performance ------------- Evolutions (9) 4500 Regions Visited (31) 6200 Robots Destroyed (325) 1625 Value Destroyed (16915) 16915 Prototype IDs (43) 860 Alien Tech Used (2) 400 Bonus (32895) 32895 TOTAL SCORE: 63395 Bonus ------- High Alert Combat Kills 1560 Follower Combat Kills 8025 Prayed to X0-1V1 5000 Major X0-1V1 Interference 10450 Entered Garrisons 1400 Used RIF Installer 3500 Network Hubs Disabled 200 Met Zhirov 300 Built Enhanced Grunts 300 A7 Reached Mainframe 300 Met R17 at Cetus 500 Hacked Protovariant 500 Met R17 at Research 2000 Friendly Fire -1140 Cogmind --------- Core Integrity 443/1400 Matter 490/500 Energy 100/100 System Corruption 8% Temperature Cool (0) Movement Flying (45) Location -1/Access Parts ------- > --- POWER (4) -------- (None) > --- PROPULSION (4) --- Impulse Thruster Array > --- UTILITY (14) ----- (None) > --- WEAPON (4) ------- (None) > --- INVENTORY (5) ---- Advanced Point Defense System Potential Cannon Peak State ------------ > --- POWER ------------ Reinforced Fission Core Reinforced Antimatter Reactor Quantum Reactor Improved Quantum Reactor > --- PROPULSION ------- Biometal Medium Treads Improved Heavy Siege Treads Compact Wheel > --- UTILITY ---------- Advanced Cooling System Advanced Cooling System Huge Storage Unit Enhanced Optical Array Advanced Signal Interpreter Long-range Terrain Scanner Core Analyzer Advanced Weapon Cycler Advanced Transmission Jammer Relay Coupler [Swarmer] Relay Coupler [Sentry] Stealth Drone Bay X0-1V1's Piety Tracker > --- WEAPON ----------- Compact HERF Cannon Potential Cannon Advanced Remote Datajack > --- INVENTORY -------- Biometal Medium Treads Biometal Medium Treads Impulse Thruster Array Experimental Energy Well Experimental Energy Well Advanced Weapon Cycler Centrium Heavy Armor Plating Graphene Brace Advanced Remote Force Field Advanced Remote Force Field Advanced Point Defense System Relay Coupler [NC] Relay Coupler [Sentry] Long-range Tractor Beam Precision Phase Gun Precision Phase Gun Hypervelocity Railgun Hypervelocity Railgun Helical Railgun Helical Railgun Helical Railgun Hypervelocity Mass Driver Advanced Remote Datajack [Rating: 197] Favorites ----------- Power Hybrid Fission Core Engine Cooled Deuterium Engine Power Core Hybrid Fission Core Reactor Particle Reactor Propulsion Improved Heavy Treads Treads Improved Heavy Treads Leg Flexi-carbon Leg Wheel Compact Wheel Hover Unit Gravmag System Flight Unit Impulse Thruster Array Utility Huge Storage Unit Device X0-1V1's Piety Tracker Storage Huge Storage Unit Processor Enhanced Optical Array Hackware Relay Coupler [Sentry] Protection Centrium Medium Armor Plating Weapon Helical Railgun Energy Gun Quantum Rifle Energy Cannon Heavy Neutron Cannon Ballistic Gun Helical Railgun Ballistic Cannon Hypervelocity Mass Driver Launcher Improved Proton Missile Launcher Special Weapon Advanced Remote Datajack Impact Weapon Powered Hammer Slashing Weapon Phasing Sabre Special Melee Weapon Chaos Jack Build | -11 -10 -9 -9 -8 -8 -8 -8 -7 -7 -7 -7 -6 -6 -5 -5 -5 -5 -5 -5 -5 -5 -4 -4 -4 -4 -3 -3 -3 -3 -2 -1 ------- Run | Yrd Mat Mat Min Mat Gar Mat Gar Fac Gar Fac Gar Fac Gar Fac Was Fac Ext Cet Arc Hub Gar Fac Upp Upp Zhi Pro Res Tes Gar Res Acc Slots Evolved 18 | . . 2 . 2 . . . 2 . . . 2 . 2 . . . . . . . 2 . . . . 2 . . 2 2 Power 2 | . . . . . . . . . . . . . . . . . . . . . . . . . . . . . . 1 1 Propulsion 2 | . . . . 1 . . . . . . . . . 1 . . . . . . . . . . . . . . . . . Utility 12 | . . 2 . . . . . 2 . . . 2 . 1 . . . . . . . 2 . . . . 1 . . 1 1 Weapon 2 | . . . . 1 . . . . . . . . . . . . . . . . . . . . . . 1 . . . . Parts Attached 233 | 7 2 19 4 9 11 9 3 2 18 . 15 8 5 11 7 3 4 7 . 1 1 4 5 2 1 6 3 11 11 25 19 Power 25 | 1 . 4 . 1 2 . . . 2 . 1 2 . . 1 . . . . . . . . . . . . . 4 4 3 Engine 9 | 1 . 4 . . 1 . . . . . 1 . . . . . . . . . . . . . . . . . . . 2 Core 7 | . . . . 1 1 . . . 2 . . 2 . . . . . . . . . . . . . . . . 1 . . Reactor 9 | . . . . . . . . . . . . . . . 1 . . . . . . . . . . . . . 3 4 1 Propulsion 44 | 2 1 5 2 1 2 1 1 . 3 . 3 1 . 2 1 . . 1 . . . . 1 . . 1 1 . 1 6 8 Treads 19 | . . 2 1 . 1 1 . . 2 . 2 . . 1 1 . . 1 . . . . 1 . . 1 1 . 1 . 3 Leg 4 | . . . . . . . . . . . . 1 . 1 . . . . . . . . . . . . . . . 2 . Wheel 19 | 2 1 3 1 1 1 . 1 . 1 . . . . . . . . . . . . . . . . . . . . 4 4 Hover 1 | . . . . . . . . . . . 1 . . . . . . . . . . . . . . . . . . . . Flight 1 | . . . . . . . . . . . . . . . . . . . . . . . . . . . . . . . 1 Utility 93 | 2 1 4 2 3 4 4 1 2 10 . 5 2 3 6 3 1 1 3 . 1 . 3 2 2 1 3 1 7 3 10 3 Device 46 | 1 . 1 1 1 3 3 1 1 2 . 2 1 1 3 3 1 . . . . . 2 2 2 . 2 1 4 1 7 . Storage 4 | 1 1 . . . . . . . . . . . . . . . . . . . . . . . . . . 1 . . 1 Processor 7 | . . . . 2 . . . . . . . 1 . 1 . . . . . . . 1 . . . . . 1 . 1 . Hackware 18 | . . . . . . . . . 7 . 2 . . . . . 1 1 . 1 . . . . . . . 1 2 1 2 Protection 18 | . . 3 1 . 1 1 . 1 1 . 1 . 2 2 . . . 2 . . . . . . 1 1 . . . 1 . Artifact . | . . . . . . . . . . . . . . . . . . . . . . . . . . . . . . . . Weapon 71 | 2 . 6 . 4 3 4 1 . 3 . 6 3 2 3 2 2 3 3 . . 1 1 2 . . 2 1 4 3 5 5 Energy Gun 10 | . . . . . 1 . . . . . 3 . 1 . . . . 1 . . . . . . . 2 . . . 2 . Energy Cannon 10 | . . . . . . 2 . . . . . 1 . 1 . 1 . 1 . . . . . . . . 1 1 1 . 1 Ballistic Gun 33 | 2 . 6 . 3 1 1 1 . 2 . 2 1 . 1 . . 2 1 . . 1 1 1 . . . . 1 2 . 4 Ballistic Cannon 2 | . . . . . . . . . . . . . . . 1 . . . . . . . . . . . . 1 . . . Launcher 2 | . . . . . 1 1 . . . . . . . . . . . . . . . . . . . . . . . . . Special Weapon 10 | . . . . . . . . . 1 . 1 1 . 1 . 1 . . . . . . 1 . . . . 1 . 3 . Impact Weapon 1 | . . . . . . . . . . . . . 1 . . . . . . . . . . . . . . . . . . Slashing Weapon 3 | . . . . 1 . . . . . . . . . . 1 . 1 . . . . . . . . . . . . . . Piercing Weapon . | . . . . . . . . . . . . . . . . . . . . . . . . . . . . . . . . Special Melee Weapon . | . . . . . . . . . . . . . . . . . . . . . . . . . . . . . . . . Unidentified Prototypes 23 | . . 1 . 1 1 . . . . . . . 1 4 . . 1 5 . . . 2 . . 2 . . 3 . 1 1 Corrupted Parts 3 | . . . . . . . . . . . . . . . . . . 1 . . . . . . . . . 1 . . 1 System Corruption 19 | . . . . . . . . . . . . . . . . . . 14 . . . . . . . . . 4 . . 1 Parts Lost 64 | . 1 2 . 1 . 1 3 . 3 . 6 1 1 . . . 1 . . . . . 1 . . 1 . 2 3 6 31 Power 7 | . . . . . . . . . . . . . . . . . . . . . . . . . . . . 2 . . 5 Propulsion 18 | . 1 1 . . . . 1 . 1 . 2 . . . . . . . . . . . . . . . . . . 2 10 Utility 25 | . . 1 . 1 . 1 1 . 2 . 2 . 1 . . . 1 . . . . . 1 . . . . . 2 2 10 Weapon 14 | . . . . . . . 1 . . . 2 1 . . . . . . . . . . . . . 1 . . 1 2 6 Highest Loss Streak 18 | . 1 2 . 1 . 1 2 . 3 . 2 1 1 . . . 1 . . . . . 1 . . 1 . 2 2 3 18 To Critical Strikes 1 | . . . . . . . . . . . . . . . . . . . . . . . . . . . . . . . 1 Average Backups 22 | 1 12 23 24 24 24 24 24 23 24 24 22 24 24 24 24 24 23 24 23 23 23 23 23 24 24 23 23 22 21 21 19 Power 1 | . 1 1 2 2 1 1 1 1 1 1 1 1 1 1 . 1 1 1 1 1 1 1 1 1 1 1 1 . . 1 . Propulsion 1 | . 2 7 6 5 3 3 2 2 1 1 . . . . . 1 1 2 2 2 2 2 2 1 1 . . 1 . 1 2 Utility 13 | . 5 6 7 9 11 12 12 10 13 13 14 15 16 15 15 16 15 16 15 14 15 15 13 14 13 12 13 12 14 13 9 Weapon 5 | . 3 7 8 7 7 7 7 9 6 8 5 7 7 6 6 4 5 4 4 5 4 5 5 5 6 5 6 6 4 4 6 Tool/Special . | . . . . . . . . . . . . . . . . . . . . . . . . . . . . . . . . Unused Backups 84 | . . 14 4 6 12 2 . . 4 . 1 . . 2 5 . 7 1 1 . . 2 4 1 1 . 2 8 2 1 4 Power 8 | . . 1 . 1 2 . . . . . . . . 1 2 . . . . . . . . . . . . 1 . . . Propulsion 13 | . . 2 1 1 . . . . 1 . . . . . . . 2 1 . . . . . 1 . . 1 2 . . 1 Utility 28 | . . 4 1 1 5 . . . 1 . 1 . . 1 2 . 3 . 1 . . 1 . . 1 . . 3 1 . 2 Weapon 33 | . . 7 2 3 5 2 . . 2 . . . . . . . 2 . . . . 1 4 . . . 1 1 1 1 1 Tool/Special 2 | . . . . . . . . . . . . . . . 1 . . . . . . . . . . . . 1 . . . Average Slot Usage (%) 89 | . 95 99 100 99 99 100 98 94 89 85 85 90 92 90 84 83 81 86 88 88 83 89 89 89 80 89 89 86 89 91 78 Engine 2 | . 14 10 10 . . 8 8 7 2 . 4 4 . . . . . . . . . . . . . . . . . . . Core 6 | . . . . 7 7 . . . 4 7 2 5 11 11 11 11 10 11 11 11 10 10 10 10 10 10 9 6 . 4 2 Reactor 1 | . . . . . . . . . . . . . . . . . . . . . . . . . . . . . 8 7 8 Treads 9 | . . 2 5 8 15 16 16 14 13 14 10 12 6 7 11 11 10 11 11 11 10 10 10 10 10 10 9 9 9 4 4 Wheel 4 | . 26 18 16 16 16 16 14 14 5 . . . . . . . . . . . . . . . . . . . . 5 4 Device 15 | . 11 17 16 16 12 16 16 21 14 14 12 17 17 16 16 16 11 11 11 11 10 15 14 18 17 15 22 21 13 21 22 Storage 5 | . 14 10 10 8 8 8 8 7 7 7 6 6 5 5 5 5 4 5 5 5 4 5 5 5 5 5 4 4 4 4 3 Processor 5 | . . . . 8 8 8 8 7 2 . . . 5 5 5 5 4 5 5 5 4 9 10 6 5 5 4 5 9 8 9 Hackware 13 | . . . . . . . . . 15 21 21 18 17 16 16 16 18 22 22 22 20 20 20 20 20 20 18 16 17 12 6 Protection 6 | . . 13 16 6 7 8 8 8 8 7 6 5 5 8 5 5 4 9 11 11 8 5 5 5 6 9 4 4 8 3 . Energy Gun 1 | . . . . . 2 2 . . . . 6 2 2 . . . 2 1 . . . . . . . . . 1 . 1 . Energy Cannon 1 | . . . . . . 4 3 . . . . 3 2 5 1 3 4 . . . . . . . . . 1 3 1 5 6 Ballistic Gun 7 | . 28 25 21 21 18 4 6 7 9 . 3 1 . . . . . 8 11 8 8 6 10 10 1 12 5 . 10 3 1 Special Weapon 2 | . . . . . . . . . . 7 3 4 4 3 4 3 1 . . 1 3 3 . . . . 4 4 3 4 1 Slashing Weapon 1 | . . . . 2 . 3 5 7 4 7 1 . . . 3 3 4 . . . . 5 4 4 5 1 3 2 . . . Peak Build Rating 197 | 7 10 30 37 48 54 53 52 57 84 81 94 82 93 106 113 114 137 129 129 130 132 138 139 141 139 142 155 160 170 179 197 Average Rating 106 | 5 8 27 31 45 50 51 51 55 70 80 78 77 87 102 108 109 118 122 128 125 127 136 136 137 123 139 151 155 166 166 169 On Entrance 94 | . 7 10 29 37 48 53 52 52 56 84 81 70 82 88 106 110 111 115 129 129 124 123 136 138 139 138 138 154 160 165 171 Avg Prop Armor Cover (%) 10 | . . . 5 7 14 16 17 15 14 . 3 3 4 10 7 . . . . . . . . . . . . . . 10 11 Naked Turns . | . . . . . . . . . . . . . . . . . . . . . . . . . . . . . . . . Heaviest Build 240 | 13 88 102 105 108 105 116 112 115 119 109 118 117 122 144 160 150 162 147 128 130 134 130 140 148 140 135 142 167 180 222 240 Greatest Support 155 | 26 26 43 26 28 48 28 40 28 150 150 150 95 95 102 145 145 145 155 155 155 155 155 155 155 155 155 155 140 155 155 105 Greatest Overweight (x) 40 | . 5 3 9 3 3 4 9 4 4 . 1 1 1 1 1 1 1 1 . . . . . . . . 1 1 1 12 40 Average Overweight (x) 1 | . 2 2 6 3 2 3 3 3 1 . . 1 1 1 . . . . . . . . . . . . . . 1 5 6 Largest Inventory Capacity 25 | 8 25 25 25 25 25 25 25 25 25 25 25 25 25 25 25 25 25 25 25 25 25 25 25 25 25 25 25 25 25 25 25 Average Capacity 24 | 7 22 25 25 25 25 25 25 25 25 25 25 25 25 25 25 25 25 25 25 25 25 25 25 25 25 25 25 25 25 25 23 Most Carried 25 | 4 19 25 25 25 25 25 25 25 25 25 25 25 25 25 25 25 25 25 25 25 25 25 25 25 25 25 25 25 25 25 25 Average Carried 23 | 1 12 23 24 24 24 24 24 23 24 24 22 24 24 24 24 24 24 24 24 24 24 24 24 25 24 24 24 24 24 24 21 Final Capacity 25 | 8 25 25 25 25 25 25 25 25 25 25 25 25 25 25 25 25 25 25 25 25 25 25 25 25 25 25 25 25 25 25 5 Final Carried 25 | 4 19 25 24 25 25 25 25 25 25 25 25 25 25 25 25 25 25 25 25 25 25 25 25 25 25 25 25 24 25 25 3 Class Distribution -------------------- 42% | Botlord-Mutant 23% | Botlord-Tank 10% | Bothacker-Mutant 8% | Mutant 3% | Gunner Dominant Class ---------------- Mutant | -10/Materials Scavenger-Mutant | -9/Materials Commander-Mutant | -9/Mines Mutant | -8/Materials Gunner | -8/Garrison Bothacker-Mutant | -8/Materials Bothacker-Mutant | -8/Garrison Bothacker-Mutant | -7/Factory Bothacker-Mutant | -7/Garrison Botlord-Mutant | -7/Factory Botlord-Mutant | -7/Garrison Botlord-Mutant | -6/Factory Botlord-Mutant | -6/Garrison Botlord-Mutant | -5/Factory Botlord-Mutant | -5/Waste Botlord-Mutant | -5/Factory Botlord-Mutant | -5/Extension Botlord-Mutant | -5/Cetus Botlord-Mutant | -5/Archives Botlord-Mutant | -5/Hub_04(d) Botlord-Tank | -5/Garrison Botlord-Mutant | -4/Factory Botlord-Mutant | -4/Upper Caves Botlord-Mutant | -4/Upper Caves Botlord-Mutant | -4/Zhirov Botlord-Tank | -3/Proximity Caves Botlord-Tank | -3/Research Botlord-Mutant | -3/Testing Botlord-Tank | -3/Garrison Botlord-Tank | -2/Research Bothacker-Gunner | -1/Access Resources | -11 -10 -9 -9 -8 -8 -8 -8 -7 -7 -7 -7 -6 -6 -5 -5 -5 -5 -5 -5 -5 -5 -4 -4 -4 -4 -3 -3 -3 -3 -2 -1 ----------- Run | Yrd Mat Mat Min Mat Gar Mat Gar Fac Gar Fac Gar Fac Gar Fac Was Fac Ext Cet Arc Hub Gar Fac Upp Upp Zhi Pro Res Tes Gar Res Acc Matter Collected 14583 | 287 375 1401 118 263 574 488 267 5 840 17 843 93 802 . 285 275 749 584 149 140 771 10 217 220 40 391 175 640 1625 1086 853 Remotely 2593 | . . . . . . 58 41 . 109 . 127 . . . . . . 254 . . 231 . . . . 90 . 207 986 . 490 Salvage Created 15636 | 112 413 865 44 220 1103 1444 465 21 1165 24 623 147 275 . 147 62 435 78 69 . 166 67 431 294 89 611 161 1016 1109 2450 1530 Parts 760 | 6 23 50 5 16 64 68 26 1 53 5 29 12 15 . 6 2 11 2 7 . 9 2 21 20 . 26 5 58 35 107 76 Haulers Intercepted 6 | . 1 1 . 1 . 3 . . . . . . . . . . . . . . . . . . . . . . . . . Recyclers Shooed 12 | . 2 . . . . 2 . . . . . . . 1 . . 2 . . . . 1 . . . . . . . 4 . Parts Field Recycled . | . . . . . . . . . . . . . . . . . . . . . . . . . . . . . . . . Retrieved Matter . | . . . . . . . . . . . . . . . . . . . . . . . . . . . . . . . . Parts Self-Destructed 94 | . . . . . . . . . . . . . . . . . . . . . . . 24 39 . 31 . . . . . Prevented 18 | . . . . . . . . . . . . . . . . . . . . . . . 3 1 . 14 . . . . . Parts Restored . | . . . . . . . . . . . . . . . . . . . . . . . . . . . . . . . . Kills | -11 -10 -9 -9 -8 -8 -8 -8 -7 -7 -7 -7 -6 -6 -5 -5 -5 -5 -5 -5 -5 -5 -4 -4 -4 -4 -3 -3 -3 -3 -2 -1 ------- Run | Yrd Mat Mat Min Mat Gar Mat Gar Fac Gar Fac Gar Fac Gar Fac Was Fac Ext Cet Arc Hub Gar Fac Upp Upp Zhi Pro Res Tes Gar Res Acc Combat Hostiles Destroyed 252 | . 6 21 3 7 23 19 10 . 21 . 14 4 4 . . 1 5 1 . . 3 1 7 7 . 10 2 13 16 26 28 Melee 4 | . . . . . . . . . 3 . . . . . . . 1 . . . . . . . . . . . . . . Guns 146 | . 6 20 3 7 21 6 6 . 18 . 14 1 1 . . . 1 1 . . 3 1 7 5 . 3 1 . 8 10 3 Cannons 54 | . . 1 . . . 3 3 . . . . . 3 . . 1 3 . . . . . . . . . . 9 7 11 13 AOE 29 | . . . . . 2 6 . . . . . 3 . . . . . . . . . . . 2 . 5 . 2 1 . 8 Classes Destroyed 19 | 2 4 3 . 1 2 2 . . 2 . . . . . 1 1 . . . . . . . . . . . . 1 . . Worker 17 | . 1 . . 1 . 1 . 1 . . . 1 . . . . . . . . . . . . . . . . . 3 9 Builder 19 | . 1 . . . . 1 . . . 1 . . . . . . 1 . . . . 1 . . . . 1 1 . 3 9 Tunneler 5 | 2 1 . . . . . . . . . . . . . . . . . . . . . . . . . . . . . 2 Hauler 6 | . 1 1 . 1 . 3 . . . . . . . . . . . . . . . . . . . . . . . . . Recycler 10 | 1 1 1 . . . 2 . . . . . . . . . . 1 . . . . . . . . . . 1 . 3 . Operator 5 | . . . . . . 1 . . . . . . . . . . . . 2 . . . . . . . . 1 . . 1 Watcher 4 | . . 1 . . . 1 . . . . . . . . . . . . . . . . . . . . . . . 1 1 Swarmer 50 | . . 8 3 5 . 2 . . 7 . 4 4 . . . . . . . . . . 3 5 . 5 . . 1 1 2 Cutter 1 | . . . . . . . . . 1 . . . . . . . . . . . . . . . . . . . . . . Grunt 93 | . 6 6 . 1 12 6 5 . 7 . 1 . 3 . . . 4 . . . 2 1 2 2 . 4 2 5 12 7 5 Brawler 5 | . . . . . . . . . 2 . 1 . 1 . . . 1 . . . . . . . . . . . . . . Duelist 4 | . . . . 1 . 1 . . . . 1 . . . . . . . . . 1 . . . . . . . . . . Sentry 26 | . . 7 . . 7 6 1 . 1 . 1 . . . . . . . . . . . . . . 1 . . 1 . 1 Specialist 2 | . . . . . . . . . . . . . . . . 1 . . . . . . . . . . . . . . 1 Hunter 28 | . . . . . 1 4 1 . . . . . . . . . . . . . . . . . . . . 2 2 8 10 Programmer 41 | . . . . . 3 . 3 . 4 . 5 . 1 . . . . . . . . . 2 . . . . 5 . 10 8 Heavy 3 | . . . . . . 1 . . . . . . . . . . . . . . . . . . . . . . . 1 1 Behemoth 1 | . . . . . . . . . . . . . . . . . . . . . . . . . . . . . 1 . . Cetus Guard 1 | . . . . . . . . . . . . . . . . . . 1 . . . . . . . . . . . . . Protovariant Y 1 | . . . . . . . . . . . . . . . . . . . . . . . . . . . . 1 . . . Thug 1 | . . . . . . . . . . . 1 . . . . . . . . . . . . . . . . . . . . Martyr 2 | . . . . . . . . . . . . . . . 2 . . . . . . . . . . . . . . . . Best Kill Streak 14 | 2 5 6 3 6 3 14 3 1 5 1 5 5 2 . . 1 1 1 2 . 1 1 3 3 . 6 2 3 3 4 8 Combat Bots Only 10 | . 2 6 3 5 3 10 3 . 5 . 5 4 2 . . 1 1 1 . . 1 1 3 3 . 6 2 3 3 4 4 Max Kills in Single Turn 3 | 1 2 2 1 1 2 3 1 1 2 1 1 3 1 . 1 1 1 1 1 . 1 1 2 1 . 2 1 2 2 2 2 Gunslinging 1 | . . 1 . . 1 . . . . . . . . . . . . . . . . . 1 . . . . . . 1 . Exploded 2 | . . . . . 2 2 . . . . . 2 . . . . . . . . . . . 1 . 2 . 2 1 . 2 Melee 1 | . . . . . . . . . 1 . . . . . . . 1 . . . . . . . . . . . . . . Uniques/NPCs Destroyed . | . . . . . . . . . . . . . . . . . . . . . . . . . . . . . . . . Combat | -11 -10 -9 -9 -8 -8 -8 -8 -7 -7 -7 -7 -6 -6 -5 -5 -5 -5 -5 -5 -5 -5 -4 -4 -4 -4 -3 -3 -3 -3 -2 -1 -------- Run | Yrd Mat Mat Min Mat Gar Mat Gar Fac Gar Fac Gar Fac Gar Fac Was Fac Ext Cet Arc Hub Gar Fac Upp Upp Zhi Pro Res Tes Gar Res Acc Hostile Shots Fired 2026 | . 25 110 14 34 65 109 60 . 143 20 186 15 45 . . 16 130 3 3 11 18 5 37 14 . 72 42 94 155 177 423 Missed 604 | . 5 33 3 8 14 35 15 . 51 8 31 5 21 . . 2 37 1 1 4 5 1 11 5 . 23 12 30 44 48 151 Hits 1422 | . 20 77 11 26 51 74 45 . 92 12 155 10 24 . . 14 93 2 2 7 13 4 26 9 . 49 30 64 111 129 272 Melee 19 | . . . . . . . . . 2 . 8 . . . . . . . . . . 2 . . . . . 7 . . . Projectile 1403 | . 20 77 11 26 51 74 45 . 90 12 147 10 24 . . 14 93 2 2 7 13 2 26 9 . 49 30 57 111 129 272 AOE 2 | . . . . . . . . . 2 . . . . . . . . . . . . . . . . . . . . . . Critical Strikes 56 | . . 3 . 2 4 7 2 . 1 . 5 . . . . 1 5 3 . . . . . . . . . 4 2 5 12 Actively Blocked 7 | . . 1 . . . . . . . . . . . . . . . . . . . . . . . . . . 1 4 1 Part Disruptions 2 | . . . . . . . 1 . . . . . . . . . . . . . . . . . . . . . . 1 . Damage Taken 23095 | . 283 857 99 175 712 982 573 . 897 108 2081 168 347 . . 241 1178 116 57 272 282 192 254 66 . 801 459 1270 2072 2425 6128 Core 2437 | . 26 135 8 . 118 140 53 . 92 . 297 . 46 . . . 102 . . 42 . 39 . . . 33 13 71 92 173 957 Absorbed by Shields 4353 | . . . . 84 8 250 112 . 316 . 256 . 73 . . 30 791 88 . . . 66 267 72 . 293 169 335 264 717 162 Reduced by Siege Mode 315 | . . . . . . . . . 10 . 104 . . . . . 8 . . . . . . . . 44 . 22 85 42 . Redirected to Shielding 167 | . . 12 . . . . . . . . . . . . . . . . . . . . . . . 26 . . 67 62 . Ignored by Resistances 456 | . . . . . 62 . . . . . . . . . . . 15 . . . . . . 52 . 101 . 37 189 . . Regen/Repaired (Parts) 1592 | . . 52 . . . 65 . . . . . . . . 119 17 619 72 . . 43 . . . . . . 215 . 390 . Core Remaining (%) 77 | 100 92 . 87 . . . 41 . . . 22 . 92 . . . . . . . 82 . . . . 92 . . 77 86 . Volleys Fired 1112 | 6 37 58 8 15 50 38 35 . 59 2 84 10 54 3 1 41 59 15 6 11 38 4 9 23 2 24 23 56 87 156 98 Largest 4 | 2 2 3 2 3 3 2 2 . 2 1 3 1 1 1 1 1 2 2 2 2 2 2 2 2 1 3 2 1 4 3 3 Hottest 294 | 40 40 69 46 74 104 81 69 . 53 5 188 94 90 38 90 113 162 240 73 113 113 70 70 113 35 163 125 110 149 169 294 Shots Fired 1774 | 12 74 141 16 45 128 58 50 . 105 2 142 10 55 3 1 44 72 20 13 14 53 5 17 40 2 52 24 56 172 198 150 Gun 1255 | 12 74 141 16 45 127 38 33 . 95 . 129 3 22 1 . . 25 20 13 7 46 2 16 33 2 46 8 13 126 79 83 Cannon 345 | . . . . . . 9 17 . . . . . 23 . 1 32 36 . . 1 2 . . 4 . . 9 26 31 95 59 Launcher 25 | . . . . . 1 11 . . . . . 3 . . . . . . . . 1 . 1 3 . 5 . . . . . Special 149 | . . . . . . . . . 10 2 13 4 10 2 . 12 11 . . 6 4 3 . . . 1 7 17 15 24 8 Kinetic 1084 | 12 74 141 16 45 111 27 33 . 95 . 28 1 . 1 . . 4 19 13 7 46 2 16 33 2 43 1 4 148 76 86 Thermal 392 | . . . . . 16 11 . . . . 101 2 23 . 1 32 57 1 . 1 2 . . 4 . 1 9 22 5 59 45 Explosive 1 | . . . . . 1 . . . . . . . . . . . . . . . . . . . . . . . . . . Electromagnetic 148 | . . . . . . 20 17 . . . . 3 22 . . . . . . . 1 . 1 3 . 7 7 13 4 39 11 Robot Hit Streak 32 | 4 10 15 6 8 18 8 14 . 13 4 10 6 6 4 . 4 15 7 4 8 7 7 12 13 . 10 11 30 32 15 12 Robot Miss Streak 7 | 1 4 7 1 3 4 1 4 . 6 . 6 3 1 . 1 3 2 1 1 2 2 . 1 3 . 1 1 2 4 3 5 Penetration Max 2 | . . . . . . . . . . . 1 . . . . . . 1 1 . 1 . 1 1 . . . 1 1 2 1 Secondary Targets 19 | . . 2 . . 2 1 2 . 3 . 3 . . . . . . . . . . . 2 1 . 1 . . 1 1 . Max Gunslinging Chain 2 | . . 2 . . 1 1 1 . 1 . 1 . . . . . . . . . . . 1 1 . 1 . . 1 1 . Shots Hit Robots 1197 | 9 48 95 12 23 84 49 39 2 103 3 70 6 20 3 5 17 61 16 10 10 29 5 16 26 2 26 16 49 117 139 87 Core Hits 591 | 4 22 39 3 11 43 39 28 1 86 1 22 8 6 1 2 1 18 5 5 2 14 1 10 13 1 17 11 33 34 53 57 Critical Kills 24 | . . . . . . . . . . . . . . . . . 1 . 2 . 1 1 1 2 . . . 3 5 2 6 Critical Parts Destroyed 33 | . . 1 . 1 . 1 . . 1 . 1 . . . . . . . 1 1 . 1 1 4 . 2 . 1 12 . 5 Critical Strikes 71 | . . 1 . 1 2 2 . . 1 . 1 . . . 1 . 5 1 3 1 1 2 2 8 . 2 1 4 19 2 11 Burn 4 | . . . . . 1 1 . . . . . . . . . . 2 . . . . . . . . . . . . . . Meltdown 3 | . . . . . . . . . . . . . . . . . 1 . . . . . . . . . . . . . 2 Destroy 60 | . . 1 . 1 1 1 . . 1 . 1 . . . . . . 1 3 1 1 2 2 8 . 2 . 4 19 2 9 Sever 4 | . . . . . . . . . . . . . . . 1 . 2 . . . . . . . . . 1 . . . . Melee Attacks 103 | . . . . 1 4 9 1 5 31 3 . . 12 . 5 7 8 . . . 1 . 1 . 2 . 7 4 . 2 . Impact 12 | . . . . . . . . . . . . . 12 . . . . . . . . . . . . . . . . . . Slashing 89 | . . . . 1 4 9 1 5 31 3 . . . . 5 7 8 . . . 1 . 1 . 2 . 7 4 . . . Piercing 2 | . . . . . . . . . . . . . . . . . . . . . . . . . . . . . . 2 . Sneak Attacks 23 | . . . . . . 5 . 1 3 1 . . . . 5 . 3 . . . . . . . . . . 3 . 2 . Combat Hostiles . | . . . . . . . . . . . . . . . . . . . . . . . . . . . . . . . . Follow-up Attacks . | . . . . . . . . . . . . . . . . . . . . . . . . . . . . . . . . Damage Inflicted 40609 | 111 708 1368 174 474 1517 2037 927 122 2536 68 1967 225 366 26 416 354 2042 556 363 100 901 72 586 970 191 1302 284 1806 3019 4699 10322 Guns 18628 | 111 617 1291 174 380 1409 482 539 . 1329 . 1967 16 126 24 . . 507 556 363 100 685 48 453 793 . 737 160 310 2396 1951 1104 Cannons 10877 | . 91 77 . . . 181 388 . . . . . 240 . . 351 1024 . . . 77 . . . . . . 815 623 2740 4270 Explosions 7737 | . . . . 94 108 1202 . . . . . 209 . . . . . . . . 139 . 78 177 . 565 . 217 . . 4948 Melee 3221 | . . . . . . 172 . 122 1207 68 . . . . 416 . 410 . . . . . 55 . 191 . 108 464 . 8 . Ramming 146 | . . . . . . . . . . . . . . 2 . 3 101 . . . . 24 . . . . 16 . . . . Kinetic 16343 | 111 617 1368 174 380 1190 379 539 . 1329 . 451 16 . 24 . . 65 556 363 100 685 48 453 793 . 737 . 104 2845 1864 1152 Thermal 14854 | . 91 . . . 219 247 . . . . 1516 33 240 . . 351 1466 . . . 77 . . . . . . 928 . 1476 8210 Explosive 776 | . . . . 94 108 . . . . . . . . . . . . . . . . . . . . . . . . . 574 Electromagnetic 5269 | . . . . . . 1239 388 . . . . 176 126 . . . . . . . 139 . 78 177 . 565 160 310 174 1351 386 Impact . | . . . . . . . . . . . . . . . . . . . . . . . . . . . . . . . . Slashing 3213 | . . . . . . 172 . 122 1207 68 . . . . 416 . 410 . . . . . 55 . 191 . 108 464 . . . Piercing 8 | . . . . . . . . . . . . . . . . . . . . . . . . . . . . . . 8 . Highest Corruption 23 | . . 2 2 . 2 17 17 . 1 1 15 . 5 4 4 14 14 14 14 17 17 . . 9 9 23 . 15 15 12 8 Average Corruption 9 | . . 2 2 . 1 13 17 . 1 1 11 . 5 4 4 12 14 14 14 15 17 . . 9 9 20 . 9 15 8 5 Corruption Purged . | . . . . . . . . . . . . . . . . . . . . . . . . . . . . . . . . Corruption Blocked . | . . . . . . . . . . . . . . . . . . . . . . . . . . . . . . . . Effects 414 | . . 3 4 . 2 37 17 . 2 3 40 . 27 8 10 34 10 13 6 14 34 . . 2 8 23 . 15 48 40 14 Message Errors 105 | . . 1 3 . 1 11 3 . 1 . 8 . 14 1 4 6 2 2 2 4 8 . . . 2 5 . 2 11 12 2 Matter Fused 96 | . . . . . . 9 6 . . 1 6 . 5 4 3 13 . 5 2 2 8 . . . . 5 . 7 11 5 4 Heat Flow Errors 52 | . . 1 1 . . 4 2 . 1 1 6 . 2 . 1 1 2 1 1 1 5 . . 1 1 3 . 2 8 5 2 Energy Discharges 53 | . . . . . 1 . 3 . . . 6 . 3 2 1 5 3 1 . 3 3 . . . 3 3 . 1 6 6 3 Parts Rejected 8 | . . . . . . . . . . 1 2 . . . . 1 . 1 . . 1 . . . . . . 1 . . 1 Parts Fused 6 | . . . . . . . . . . . 1 . . . . . . . . 1 1 . . . . . . . 2 1 . Data Loss (minor) 34 | . . . . . . 8 . . . . 3 . . . 1 5 2 1 . 1 2 . . . 1 1 . 1 2 5 1 Data Loss (major) 12 | . . . . . . . . . . . 2 . 1 1 . . . . . 1 1 . . 1 . 2 . 1 2 . . Misfires 20 | . . . . . . 3 1 . . . 3 . 1 . . 3 . 1 1 . . . . . . . . . 3 4 . Alerts 5 | . . 1 . . . . 1 . . . . . 1 . . . . 1 . . . . . . 1 . . . . . . Misdirections 2 | . . . . . . . . . . . . . . . . . 1 . . . 1 . . . . . . . . . . Weapon Failures 21 | . . . . . . 2 1 . . . 3 . . . . . . . . 1 4 . . . . 4 . . 3 2 1 Overload Shots 1 | . . . . . . . . . . . . . . . . . . 1 . . . . . . . . . . . . . Overflow Damage 2861 | . 1 . . 54 . 37 . 40 28 . . . . . 56 . 49 . . . . . 44 . 96 . . 238 43 135 2040 Projectiles 1406 | . 1 . . . . . . . . . . . . . . . 22 . . . . . . . . . . 19 43 135 1186 Explosions 945 | . . . . 54 . 37 . . . . . . . . . . . . . . . . . . . . . . . . 854 Melee 510 | . . . . . . . . 40 28 . . . . . 56 . 27 . . . . . 44 . 96 . . 219 . . . Knockbacks 2 | . . . . . . . . . . . . . . . . . 1 . . . . . . . . . . . 1 . . Impact 1 | . . . . . . . . . . . . . . . . . 1 . . . . . . . . . . . . . . Kinetic 1 | . . . . . . . . . . . . . . . . . . . . . . . . . . . . . 1 . . Secondary . | . . . . . . . . . . . . . . . . . . . . . . . . . . . . . . . . Self-Inflicted Damage 186 | . . . . . . 114 . . . . . . . . . . . . . . . . . . . . . . . . 72 Shots 8 | . . . . . . 6 . . . . . . . . . . . . . . . . . . . . . . . . 2 Rammed 10 | . . . . . . . . . . . . . . 2 . 1 5 . . . . 1 . . . . 1 . . . . Targets Rammed 12 | . . . . . . . . . . . . . . 2 . 1 5 . . . . 2 . . . . 2 . . . . Kicked . | . . . . . . . . . . . . . . . . . . . . . . . . . . . . . . . . Crushed 2 | . . . . . . . . . . . . . . . . . . . . . . 1 . . . . 1 . . . . Highest Temperature 453 | . 2 240 268 222 336 262 272 . 127 271 453 . 174 . 247 326 336 184 142 134 267 . . 195 164 194 268 248 323 370 240 Average Temperature 81 | . 2 51 74 37 74 83 119 . 46 139 96 . 66 . 132 79 90 48 47 57 81 . . 74 93 60 36 73 106 98 56 Received Heat Transfer 3099 | . 159 252 12 31 315 201 114 . 190 45 218 . 70 . . 66 392 4 18 . 120 15 46 . . 104 126 146 279 115 61 Effects 16 | . . . . . . 2 1 . . . 5 . . . . . 2 . . . . . . . . . . . 3 3 . Shutdowns 2 | . . . . . . . . . . . . . . . . . . . . . . . . . . . . . . 2 . Energy Bleed 6 | . . . . . . . 1 . . . 2 . . . . . 2 . . . . . . . . . . . . 1 . Interference 6 | . . . . . . 2 . . . . 1 . . . . . . . . . . . . . . . . . 3 . . Matter Decay 1 | . . . . . . . . . . . 1 . . . . . . . . . . . . . . . . . . . . Damage (minor) 1 | . . . . . . . . . . . 1 . . . . . . . . . . . . . . . . . . . . Siege Activations 16 | . . . . . . . . . 2 . 2 . . . . . 1 . . . 2 . . 2 . 3 . 1 2 1 . Total Turns 237 | . . . . . . . . . 25 . 53 . . . . . 20 . . . 15 . . 16 . 28 . 19 44 17 . Longest Duration 37 | . . . . . . . . . 22 . 36 . . . . . 20 . . . 11 . . 13 . 13 . 19 37 17 . Martial Activations . | . . . . . . . . . . . . . . . . . . . . . . . . . . . . . . . . Shielding Activations . | . . . . . . . . . . . . . . . . . . . . . . . . . . . . . . . . Robots Disrupted 2 | . . . . . . . . . . . . . . . . . . . . . . . . . . . 1 1 . . . Combat Hostiles 2 | . . . . . . . . . . . . . . . . . . . . . . . . . . . 1 1 . . . Robots Corrupted 16 | . . . . . . 5 1 . . . . . . . . . . . . . . . . . . 2 1 2 . 5 . Combat Hostiles 15 | . . . . . . 4 1 . . . . . . . . . . . . . . . . . . 2 1 2 . 5 . Parts Fried 31 | . . . . . . 6 . . . . . . . . . . . . . . . . . . . 4 1 5 1 12 2 Impact Corruptions 2 | . . . . . . . . . . . . . . . . . 2 . . . . . . . . . . . . . . Robots Melted 5 | . . . . . . . . . . . . . . . . . 1 . . . . . . . . . . . . . 4 Combat Hostiles 4 | . . . . . . . . . . . . . . . . . . . . . . . . . . . . . . . 4 Parts Melted 25 | . . . . . 1 2 . . . . 2 . . . . . 4 1 . . . . . . . . 3 . 1 . 11 Heat Transferred 11752 | . 50 . . . 481 596 . . . . 1602 50 350 . . 333 1776 . . . 74 . . . . . . 150 . . 6290 Parts Sabotaged . | . . . . . . . . . . . . . . . . . . . . . . . . . . . . . . . . Parts Stolen . | . . . . . . . . . . . . . . . . . . . . . . . . . . . . . . . . Parts Stripped . | . . . . . . . . . . . . . . . . . . . . . . . . . . . . . . . . Power Chain Reactions 7 | . . . . . . 5 . . . . . 1 . . . . . . . . . . . . . . . 1 . . . Alert | -11 -10 -9 -9 -8 -8 -8 -8 -7 -7 -7 -7 -6 -6 -5 -5 -5 -5 -5 -5 -5 -5 -4 -4 -4 -4 -3 -3 -3 -3 -2 -1 ------- Run | Yrd Mat Mat Min Mat Gar Mat Gar Fac Gar Fac Gar Fac Gar Fac Was Fac Ext Cet Arc Hub Gar Fac Upp Upp Zhi Pro Res Tes Gar Res Acc Maximum Alert Level 4 | . . 1 . 1 3 3 2 1 3 2 3 2 3 2 . 3 2 1 1 . 4 4 . . . . 2 . 2 1 2 Low Security (%) 30 | 100 100 67 100 17 8 . . 7 . . . . . . 100 38 68 53 34 100 6 . . . . . 46 100 25 10 7 Level 1 28 | . . 32 . 82 36 20 . 92 24 . 16 . 39 . . 1 11 46 65 . 3 . . . . . 43 . 43 89 49 Level 2 23 | . . . . . 45 41 100 . 39 100 16 100 20 100 . 30 20 . . . 10 . . . . . 9 . 30 . 43 Level 3 13 | . . . . . 8 37 . . 36 . 67 . 40 . . 29 . . . . 9 91 . . . . . . . . . Level 4 3 | . . . . . . . . . . . . . . . . . . . . . 70 8 . . . . . . . . . Level 5 . | . . . . . . . . . . . . . . . . . . . . . . . . . . . . . . . . High Security . | . . . . . . . . . . . . . . . . . . . . . . . . . . . . . . . . Max Security . | . . . . . . . . . . . . . . . . . . . . . . . . . . . . . . . . Peak Influence 1478 | 10 66 277 151 340 847 753 687 360 1008 529 1019 545 1074 563 141 891 552 289 273 184 1478 1277 . . . . 470 147 554 351 595 Initial 775 | . . 3 100 29 174 412 451 360 238 529 339 534 301 563 141 . 422 80 83 84 74 775 . . . . 470 69 81 311 168 Average 401 | 1 16 149 94 252 462 578 563 324 602 509 752 487 640 485 49 445 225 194 213 133 1113 963 . . . . 227 49 288 255 357 Influence Increases 17023 | 15 239 679 165 548 813 680 266 191 1000 76 780 141 883 30 26 1507 892 389 230 282 1464 840 431 280 10 297 623 409 603 743 1491 Destroy 0b10 Robot/C 8010 | . 120 480 100 200 560 420 220 80 660 40 500 80 520 20 . 540 480 160 80 80 560 160 180 140 . 220 40 240 260 405 465 Destroy 0b10 Robot/NC 418 | 15 25 20 . 20 . 45 . 10 20 10 . 5 . . . 20 10 10 10 10 . 20 5 . 10 5 5 15 . 40 88 Destroy Leader 1048 | . 32 116 20 26 10 128 20 12 30 12 30 10 40 10 . 120 60 . . 22 30 20 30 30 . 20 10 30 8 74 98 Allied During Kill 2799 | . . 22 29 47 38 23 7 36 69 12 36 5 194 . . 512 237 170 90 112 589 184 126 95 . 52 5 22 30 32 25 Successful Hack 309 | . 30 8 . . 35 . 14 . . . 21 6 7 . . . 33 . . . . 14 . . . . 78 42 12 9 . Select Force Hacks 140 | . 30 . . . . . . . . . . 30 . . . 30 . . . 50 . . . . . . . . . . . Disable Machine 831 | . . . . 120 15 45 . 30 . . 15 . 15 . . 15 45 15 30 . 60 180 . . . . . 30 48 72 96 Anti-Garrison Action 727 | . . . . . 150 . . . 100 . 100 . 50 . . . . . . . 100 . . . . . . . 227 . . Destroy Structure 1400 | . 2 3 1 30 5 19 5 23 46 2 48 5 57 . 26 44 12 34 20 8 125 232 . . . . 20 30 18 99 486 Advance Influence 450 | . . . . . . . . . . . . . . . . . . . . . . . . . . . 450 . . . . Lose Combat Pursuer 510 | . . 30 15 105 . . . . 75 . 30 . . . . 30 15 . . . . 30 90 15 . . 15 . . 12 48 Miscellaneous 381 | . . . . . . . . . . . . . . . . 196 . . . . . . . . . . . . . . 185 Influence Decreases 16495 | 15 231 428 349 355 234 833 273 537 333 599 246 729 240 701 429 644 1612 323 196 419 92 1057 768 555 659 267 530 423 158 1016 1244 Entered New Map 6691 | . . 5 159 46 94 435 243 327 103 479 146 485 130 511 262 . 441 63 126 159 32 703 468 177 649 . 10 54 28 243 113 Time Decay 6076 | 15 221 363 190 269 . 368 . 60 . 80 . 214 . 150 167 304 571 180 50 140 . 254 270 318 10 217 350 316 . 553 446 Lost Part 630 | . 10 20 . . . 10 30 . 30 . 60 10 10 . . . 10 . . . . . 10 . . 10 . 20 30 60 310 Lost Ally 2073 | . . 40 . 40 140 20 . . 200 40 40 20 100 40 . 340 140 80 20 120 60 100 20 60 . 40 20 33 100 160 100 Purge Threat 1025 | . . . . . . . . 150 . . . . . . . . 450 . . . . . . . . . 150 . . . 275 Squads Dispatched 57 | . 5 4 . 3 . 5 . . . 1 . 1 . 1 . 9 2 . . 1 . 1 . . . . . 7 . 8 9 Investigation 15 | . 4 2 . 2 . 2 . . . 1 . 1 . . . 1 . . . 1 . . . . . . . . . 1 . Extermination 12 | . . . . . . . . . . . . . . . . 2 . . . . . . . . . . . 2 . 5 3 Reinforcement 25 | . 1 2 . 1 . 2 . . . . . . . . . 6 2 . . . . . . . . . . 4 . 1 6 Assault 4 | . . . . . . 1 . . . . . . . 1 . . . . . . . 1 . . . . . 1 . . . Garrison 1 | . . . . . . . . . . . . . . . . . . . . . . . . . . . . . . 1 . Intercept . | . . . . . . . . . . . . . . . . . . . . . . . . . . . . . . . . Searches Triggered . | . . . . . . . . . . . . . . . . . . . . . . . . . . . . . . . . Construction Impeded 3 | . . . . . . . . . . . . . . . . . . . . . . . . . . . . 1 . . 2 Haulers Reinforced 2 | . . . . . . . . . . . . . . . . . . . . . . . . . . . . . . . 2 Active Scanning Responses . | . . . . . . . . . . . . . . . . . . . . . . . . . . . . . . . . Cargo Convoy Interrupts . | . . . . . . . . . . . . . . . . . . . . . . . . . . . . . . . . Alert ID Control Effect 57 | . . . . . . . . . . . . . . . . . . . . . . 7 . 11 . 4 2 3 8 19 3 Stealth | -11 -10 -9 -9 -8 -8 -8 -8 -7 -7 -7 -7 -6 -6 -5 -5 -5 -5 -5 -5 -5 -5 -4 -4 -4 -4 -3 -3 -3 -3 -2 -1 --------- Run | Yrd Mat Mat Min Mat Gar Mat Gar Fac Gar Fac Gar Fac Gar Fac Was Fac Ext Cet Arc Hub Gar Fac Upp Upp Zhi Pro Res Tes Gar Res Acc Distress Signals 32 | . 5 7 . 2 . 2 . . . 1 . . . . . 1 1 . . . . . . . . . 6 . . 2 5 Communications Jammed 503 | . . . . . . . . . . 10 . . . . . . 159 115 . 32 . 18 . . . . . 32 . 55 82 Distress Signals 482 | . . . . . . . . . . 9 . . . . . . 159 115 . 31 . 18 . . . . . 32 . 38 80 Times Spotted 628 | . 14 37 8 25 26 31 11 1 43 6 34 4 28 2 . 25 30 9 3 8 24 12 13 17 . 18 9 32 30 61 67 Peak Tracking Total 14 | . 4 8 3 5 3 11 3 2 11 4 7 4 4 2 . 8 6 5 1 5 5 7 5 5 . 5 4 8 6 9 14 Tactical Retreats 24 | . . 2 1 5 . . . . 3 . 1 . . . . 2 1 . . . . 2 2 1 . . 1 . . 1 2 Traps | -11 -10 -9 -9 -8 -8 -8 -8 -7 -7 -7 -7 -6 -6 -5 -5 -5 -5 -5 -5 -5 -5 -4 -4 -4 -4 -3 -3 -3 -3 -2 -1 ------- Run | Yrd Mat Mat Min Mat Gar Mat Gar Fac Gar Fac Gar Fac Gar Fac Was Fac Ext Cet Arc Hub Gar Fac Upp Upp Zhi Pro Res Tes Gar Res Acc Traps Triggered 32 | . 1 1 . . 3 . 4 . . . 6 . 4 1 . . . . . . . . . . . . 1 . 9 1 1 Indirectly . | . . . . . . . . . . . . . . . . . . . . . . . . . . . . . . . . Trap Hack Attempts . | . . . . . . . . . . . . . . . . . . . . . . . . . . . . . . . . Triggered . | . . . . . . . . . . . . . . . . . . . . . . . . . . . . . . . . Disarmed . | . . . . . . . . . . . . . . . . . . . . . . . . . . . . . . . . Reprogrammed . | . . . . . . . . . . . . . . . . . . . . . . . . . . . . . . . . Reused . | . . . . . . . . . . . . . . . . . . . . . . . . . . . . . . . . Traps Extracted . | . . . . . . . . . . . . . . . . . . . . . . . . . . . . . . . . Installed . | . . . . . . . . . . . . . . . . . . . . . . . . . . . . . . . . Triggered . | . . . . . . . . . . . . . . . . . . . . . . . . . . . . . . . . Most Traps Carried 4 | . . . . . 4 4 4 4 4 4 4 4 4 4 4 4 4 4 4 4 4 4 4 4 4 4 4 . . . . Machines | -11 -10 -9 -9 -8 -8 -8 -8 -7 -7 -7 -7 -6 -6 -5 -5 -5 -5 -5 -5 -5 -5 -4 -4 -4 -4 -3 -3 -3 -3 -2 -1 ---------- Run | Yrd Mat Mat Min Mat Gar Mat Gar Fac Gar Fac Gar Fac Gar Fac Was Fac Ext Cet Arc Hub Gar Fac Upp Upp Zhi Pro Res Tes Gar Res Acc Machines Disabled 74 | . . . . 8 3 3 . 2 . . 3 . 3 . . 1 3 1 2 . 6 12 . . 1 1 . 3 8 6 8 Max in Single Turn 2 | . . . . 2 1 1 . . . . 1 . 1 . . 1 1 1 1 . 1 . . . 1 1 . 1 1 1 2 Garrison Access 3 | . . . . . . . . . . . . . . . . . . . . . . . . . . . 2 . . . 1 Garrison Relay 10 | . . . . . 1 . . . . . 2 . 1 . . . . . . . 2 . . . . . . . 4 . . Phase Generator 2 | . . . . . 1 . . . . . . . . . . . . . . . 1 . . . . . . . . . . Network Hub 1 | . . . . . . . . . . . . . . . . . . . . 1 . . . . . . . . . . . Energy Cycler 1 | . . . . . . . . . . . . . . . . . 1 . . . . . . . . . . . . . . Machines Repaired . | . . . . . . . . . . . . . . . . . . . . . . . . . . . . . . . . Machines Dismantled . | . . . . . . . . . . . . . . . . . . . . . . . . . . . . . . . . Machines Sabotaged 1 | . . . . . . . . . . . . . . . . . . . . 1 . . . . . . . . . . . Overloaded Fab Kills . | . . . . . . . . . . . . . . . . . . . . . . . . . . . . . . . . Hacking | -11 -10 -9 -9 -8 -8 -8 -8 -7 -7 -7 -7 -6 -6 -5 -5 -5 -5 -5 -5 -5 -5 -4 -4 -4 -4 -3 -3 -3 -3 -2 -1 --------- Run | Yrd Mat Mat Min Mat Gar Mat Gar Fac Gar Fac Gar Fac Gar Fac Was Fac Ext Cet Arc Hub Gar Fac Upp Upp Zhi Pro Res Tes Gar Res Acc Machines Accessed 90 | . 5 6 1 5 4 7 2 2 1 3 3 3 2 . . 4 11 . . 2 1 2 1 . 5 1 7 6 3 2 1 Terminals 55 | . 4 3 . 4 4 5 2 1 1 2 3 . 2 . . 2 9 . . 1 1 1 . . . 1 2 3 3 1 . Fabricators 4 | . . . . . . . . . . . . 1 . . . . . . . . . 1 . . . . 1 1 . . . Repair Stations 5 | . . 1 . . . 1 . . . . . 1 . . . . . . . . . . . . . . 1 . . 1 . Recycling Units 5 | . 1 1 . . . . . . . . . . . . . 1 2 . . . . . . . . . . . . . . Scanalyzers 5 | . . 1 . . . . . . . . . . . . . 1 . . . . . . . . . . 2 1 . . . Garrison Access 9 | . . . . 1 . 1 . 1 . 1 . 1 . . . . . . . 1 . . . . . . 1 1 . . 1 Total Hacks 195 | . 12 12 1 11 5 15 3 4 1 4 4 7 3 . . 7 23 . . 3 2 8 1 . 18 7 15 18 6 4 1 Successful 92 | . 5 6 1 1 3 3 1 2 . 1 2 6 1 . . 2 8 . . 2 . 1 1 . 18 7 7 9 2 2 1 Failed 102 | . 7 6 . 10 2 12 2 2 1 3 2 1 2 . . 5 15 . . 1 2 7 . . . . 8 8 4 2 . Catastrophic 33 | . 2 1 . 3 . 2 2 1 1 1 . . 1 . . 2 4 . . . 1 2 . . . . 5 3 1 1 . Database Lockouts 1 | . . . . . . . . . . . . . . . . . . . . . . . . . . . . 1 . . . Manual 57 | . 9 8 . 7 . 11 . 3 . . . 3 . . . 2 . 1 . 2 . 5 . . . . 1 3 . 2 . Terminals 114 | . 11 7 . 8 5 11 3 3 1 3 4 . 3 . . 3 19 . . 2 2 3 . . . 7 4 7 6 2 . Fabricators 13 | . . . . . . . . . . . . 2 . . . . . . . . . 5 . . . . 2 4 . . . Repair Stations 8 | . . 1 . . . 2 . . . . . 2 . . . . . . . . . . . . . . 1 . . 2 . Recycling Units 8 | . 1 1 . . . . . . . . . . . . . 2 4 . . . . . . . . . . . . . . Scanalyzers 18 | . . 3 . . . . . . . . . . . . . 2 . . . . . . . . . . 7 6 . . . Garrison Access 14 | . . . . 3 . 2 . 1 . 1 . 3 . . . . . . . 1 . . . . . . 1 1 . . 1 Terminal Hacks 55 | . 4 1 1 . 3 . 1 1 . . 2 . 1 . . . 8 . . . . 1 1 . 18 7 2 2 2 . . Record 15 | . . . . . . . . . . . . . . . . . . . . . . 1 . . 6 7 . 1 . . . Part Schematic 6 | . . . . . . . . . . . . . . . . . 1 . . . . . . . 4 . 1 . . . . Robot Schematic 1 | . 1 . . . . . . . . . . . . . . . . . . . . . . . . . . . . . . Robot Analysis 4 | . . . . . . . . . . . . . . . . . . . . . . . . . 4 . . . . . . Prototype ID Bank 6 | . 1 . . . . . . . . . . . . . . . 1 . . . . . . . 4 . . . . . . Open Door 8 | . . . 1 . 1 . . . . . 1 . 1 . . . 2 . . . . . 1 . . . . . 1 . . Branch Access Points 1 | . . 1 . . . . . . . . . . . . . . . . . . . . . . . . . . . . . Emergency Access Points 1 | . . . . . . . . . . . 1 . . . . . . . . . . . . . . . . . . . . Fabricator Index 1 | . . . . . . . . . . . . . . . . . 1 . . . . . . . . . . . . . . Unreport Threat 4 | . . . . . . . . 1 . . . . . . . . 2 . . . . . . . . . 1 . . . . Locate Traps 1 | . 1 . . . . . . . . . . . . . . . . . . . . . . . . . . . . . . Registered Components 1 | . . . . . . . . . . . . . . . . . 1 . . . . . . . . . . . . . . Zone Layout 1 | . 1 . . . . . . . . . . . . . . . . . . . . . . . . . . . . . . Garrison Registry 2 | . . . . . 1 . 1 . . . . . . . . . . . . . . . . . . . . . . . . Patrol Navigation 1 | . . . . . 1 . . . . . . . . . . . . . . . . . . . . . . . . . . Security Stations 1 | . . . . . . . . . . . . . . . . . . . . . . . . . . . . . 1 . . Protovariant Controls 1 | . . . . . . . . . . . . . . . . . . . . . . . . . . . . 1 . . . Fabricator Hacks 4 | . . . . . . . . . . . . 1 . . . . . . . . . . . . . . 1 2 . . . Network Status 1 | . . . . . . . . . . . . 1 . . . . . . . . . . . . . . . . . . . Load Schematic 1 | . . . . . . . . . . . . . . . . . . . . . . . . . . . . 1 . . . Build 2 | . . . . . . . . . . . . . . . . . . . . . . . . . . . 1 1 . . . Repair Station Hacks 1 | . . . . . . . . . . . . 1 . . . . . . . . . . . . . . . . . . . Refit 1 | . . . . . . . . . . . . 1 . . . . . . . . . . . . . . . . . . . Recycling Unit Hacks 2 | . . 1 . . . . . . . . . . . . . 1 . . . . . . . . . . . . . . . Retrieve Components 2 | . . 1 . . . . . . . . . . . . . 1 . . . . . . . . . . . . . . . Scanalyzer 9 | . . 3 . . . . . . . . . . . . . . . . . . . . . . . . 3 3 . . . Insert Component 3 | . . . . . . . . . . . . . . . . . . . . . . . . . . . 2 1 . . . Analyze 1 | . . . . . . . . . . . . . . . . . . . . . . . . . . . 1 . . . . Retrieve Study 5 | . . 3 . . . . . . . . . . . . . . . . . . . . . . . . . 2 . . . Garrison Access Hacks 11 | . . . . 1 . 2 . 1 . 1 . 2 . . . . . . . 1 . . . . . . 1 1 . . 1 Unlock Access 7 | . . . . 1 . 1 . 1 . 1 . 1 . . . . . . . 1 . . . . . . . 1 . . . Seal Access 2 | . . . . . . . . . . . . . . . . . . . . . . . . . . . 1 . . . 1 Coupler Status 2 | . . . . . . 1 . . . . . 1 . . . . . . . . . . . . . . . . . . . Unauthorized Hacks 10 | . 1 1 . . . 1 . . . . . 2 . . . 1 . . . 1 . . . . . . . 1 . 2 . Terminals 1 | . . . . . . . . . . . . . . . . . . . . 1 . . . . . . . . . . . Sabotage 1 | . . . . . . . . . . . . . . . . . . . . 1 . . . . . . . . . . . Fabricators . | . . . . . . . . . . . . . . . . . . . . . . . . . . . . . . . . Repair Stations 5 | . . 1 . . . 1 . . . . . 1 . . . . . . . . . . . . . . . . . 2 . Mechanics 2 | . . . . . . . . . . . . 1 . . . . . . . . . . . . . . . . . 1 . Patch 3 | . . 1 . . . 1 . . . . . . . . . . . . . . . . . . . . . . . 1 . Recycling Units 1 | . 1 . . . . . . . . . . . . . . . . . . . . . . . . . . . . . . Tunnel 1 | . 1 . . . . . . . . . . . . . . . . . . . . . . . . . . . . . . Scanalyzers 2 | . . . . . . . . . . . . . . . . 1 . . . . . . . . . . . 1 . . . Researchers 1 | . . . . . . . . . . . . . . . . . . . . . . . . . . . . 1 . . . Extract 1 | . . . . . . . . . . . . . . . . 1 . . . . . . . . . . . . . . . Garrison Access 1 | . . . . . . . . . . . . 1 . . . . . . . . . . . . . . . . . . . Eject 1 | . . . . . . . . . . . . 1 . . . . . . . . . . . . . . . . . . . Data Cores Recovered . | . . . . . . . . . . . . . . . . . . . . . . . . . . . . . . . . Used . | . . . . . . . . . . . . . . . . . . . . . . . . . . . . . . . . Hacking Detections 64 | . 4 4 . 5 3 5 2 2 1 3 1 1 2 . . 4 9 1 . . 1 2 . . . 1 6 4 2 1 . Full Trace Events 6 | . 2 1 . 2 . . . . . 1 . . . . . . . . . . . . . . . . . . . . . Feedback Events . | . . . . . . . . . . . . . . . . . . . . . . . . . . . . . . . . Feedback Blocked . | . . . . . . . . . . . . . . . . . . . . . . . . . . . . . . . . Robot Schematics Acquired 1 | . 1 . . . . . . . . . . . . . . . . . . . . . . . . . . . . . . Robots Built 1 | . . . . . . . . . . . . . . . . . . . . . . . . . . . . 1 . . . Authchips 1 | . . . . . . . . . . . . . . . . . . . . . . . . . . . . 1 . . . Time 40 | . . . . . . . . . . . . . . . . . . . . . . . . . . . . 40 . . . Total Robot Build Rating 1 | . . . . . . . . . . . . . . . . . . . . . . . . . . . . 1 . . . Part Schematics Acquired 7 | . . . . . . . . . . . . . . . . 1 1 . . . . . . . 4 . 1 . . . . Parts Built 2 | . . . . . . . . . . . . . . . . . . . . . . . . . . . 2 . . . . Authchips . | . . . . . . . . . . . . . . . . . . . . . . . . . . . . . . . . Time 46 | . . . . . . . . . . . . . . . . . . . . . . . . . . . 46 . . . . Total Part Build Rating 18 | . . . . . . . . . . . . . . . . . . . . . . . . . . . 18 . . . . Part Studies Acquired 5 | . . 3 . . . . . . . . . . . . . . . . . . . . . . . . . 2 . . . Parts Repaired . | . . . . . . . . . . . . . . . . . . . . . . . . . . . . . . . . Time . | . . . . . . . . . . . . . . . . . . . . . . . . . . . . . . . . Parts Recycled . | . . . . . . . . . . . . . . . . . . . . . . . . . . . . . . . . Recycled Matter . | . . . . . . . . . . . . . . . . . . . . . . . . . . . . . . . . Retrieved Matter . | . . . . . . . . . . . . . . . . . . . . . . . . . . . . . . . . Retrieved Components 7 | . . 4 . . . . . . . . . . . . . 3 . . . . . . . . . . . . . . . Parts Scanalyzed 1 | . . . . . . . . . . . . . . . . . . . . . . . . . . . 1 . . . . Part Schematics Acquired . | . . . . . . . . . . . . . . . . . . . . . . . . . . . . . . . . Parts Damaged 1 | . . . . . . . . . . . . . . . . . . . . . . . . . . . 1 . . . . Bothacking | -11 -10 -9 -9 -8 -8 -8 -8 -7 -7 -7 -7 -6 -6 -5 -5 -5 -5 -5 -5 -5 -5 -4 -4 -4 -4 -3 -3 -3 -3 -2 -1 ------------ Run | Yrd Mat Mat Min Mat Gar Mat Gar Fac Gar Fac Gar Fac Gar Fac Was Fac Ext Cet Arc Hub Gar Fac Upp Upp Zhi Pro Res Tes Gar Res Acc Used RIF Installer 7 | . . . . . 1 . 1 . 1 . 1 . 1 . . . . . . . 1 . . . . . . . 1 . . Code Merge 1 | . . . . . . . . . 1 . . . . . . . . . . . . . . . . . . . . . . Command Fork 2 | . . . . . . . 1 . . . 1 . . . . . . . . . . . . . . . . . . . . Threat Obfuscator 1 | . . . . . . . . . . . . . . . . . . . . . . . . . . . . . 1 . . Signal Jammer 1 | . . . . . . . . . 1 . . . . . . . . . . . . . . . . . . . . . . Alert ID Control 1 | . . . . . . . . . . . . . . . . . . . . . 1 . . . . . . . . . . Autooverride 1 | . . . . . . . . . . . . . 1 . . . . . . . . . . . . . . . . . . Robots Hacked 112 | . . . . . . . . . 6 1 6 3 8 2 . 6 9 . 1 5 5 2 . 2 . 2 7 9 14 16 8 Non-combat 21 | . . . . . . . . . . . . 3 . 2 . 4 1 . . . . 1 . . . . 2 2 . 4 2 Combat 91 | . . . . . . . . . 6 1 6 . 8 . . 2 8 . 1 5 5 1 . 2 . 2 5 7 14 12 6 Autooverrided 24 | . . . . . . . . . . . . . 1 . . . 3 . 1 . 3 . . 2 . 1 2 2 3 2 4 Robot Hacks Applied 95 | . . . . . . . . . 7 1 7 3 7 2 . 6 6 . . 5 2 3 . . . 1 5 8 11 15 6 parse_system 3 | . . . . . . . . . 1 . . . . . . . . . . . . . . . . . 1 1 . . . no_distress 3 | . . . . . . . . . . . . . . . . . . . . . . . . . . . . 1 . . 2 find_chute 2 | . . . . . . . . . . . . 1 . 1 . . . . . . . . . . . . . . . . . ignore_repairs 1 | . . . . . . . . . . . . . . . . 1 . . . . . . . . . . . . . . . map_walls 7 | . . . . . . . . . . . . 1 . 1 . 3 . . . . . . . . . . . . . 2 . find_fabricator 1 | . . . . . . . . . . . . . . . . . . . . . . 1 . . . . . . . . . drop_inventory 4 | . . . . . . . . . . . . 1 . . . . . . . . . 1 . . . . 1 . . 1 . ignore_parts 1 | . . . . . . . . . . . . . . . . . . . . . . . . . . . 1 . . . . purge_threat 3 | . . . . . . . . . . . . . . . . . 1 . . . . . . . . . . . . . 2 find_garrison 1 | . . . . . . . . . . . . . . . . 1 . . . . . . . . . . . . . . . focus_fire 2 | . . . . . . . . . . . . . 1 . . . 1 . . . . . . . . . . . . . . scatter_targeting 4 | . . . . . . . . . . . . . . . . . . . . 3 . . . . . . 1 . . . . disrupt_area 1 | . . . . . . . . . . . . . . . . . 1 . . . . . . . . . . . . . . overload_power 1 | . . . . . . . . . . . 1 . . . . . . . . . . . . . . . . . . . . amplify_resonance 13 | . . . . . . . . . 2 . 1 . . . . . . . . 1 . . . . . . . . 3 4 2 wipe_record 3 | . . . . . . . . . . . 2 . . . . . . . . . . . . . . . . . 1 . . reboot_system 1 | . . . . . . . . . . . . . . . . . . . . . . . . . . . . . 1 . . overwrite_iff 19 | . . . . . . . . . 4 . 2 . 2 . . 1 1 . . . . . . . . . . 1 2 6 . formatsys_low 1 | . . . . . . . . . . . . . . . . . . . . . . . . . . . . 1 . . . formatsys_high 24 | . . . . . . . . . . 1 1 . 4 . . . 2 . . 1 2 1 . . . 1 1 4 4 2 . Relay Couplers Released 50 | . . . . . 3 . . . . . 9 4 4 . . . . . . . 9 . . . . . 1 3 17 . . Ejected 4 | . . . . . . . . . . . . 4 . . . . . . . . . . . . . . . . . . . Machine Destruction 43 | . . . . . 3 . . . . . 9 . 4 . . . . . . . 9 . . . . . 1 . 17 . . Programmers 3 | . . . . . . . . . . . . . . . . . . . . . . . . . . . . 3 . . . Attached 17 | . . . . . . . . . 7 . 2 . . . . . 1 1 . 1 . . . . . . . . 2 1 2 Merged Code Value 128 | . . . . . . . . . . . 31 17 7 . . . . . . . 9 . . . . . . . 64 . . Fabnet Peak Effective % . | . . . . . . . . . . . . . . . . . . . . . . . . . . . . . . . . Robots Rewired 37 | . . . . . 4 . . . 4 . 3 . 4 . . . 13 . . . 4 . . 2 . . 1 . 2 . . Allies Hacked 3 | . . . . . . . . . . . . . . . . . . . . . . 1 . . . . . . . 2 . Hacks Repelled . | . . . . . . . . . . . . . . . . . . . . . . . . . . . . . . . . Allies | -11 -10 -9 -9 -8 -8 -8 -8 -7 -7 -7 -7 -6 -6 -5 -5 -5 -5 -5 -5 -5 -5 -4 -4 -4 -4 -3 -3 -3 -3 -2 -1 -------- Run | Yrd Mat Mat Min Mat Gar Mat Gar Fac Gar Fac Gar Fac Gar Fac Was Fac Ext Cet Arc Hub Gar Fac Upp Upp Zhi Pro Res Tes Gar Res Acc Total Allies 190 | . . 5 3 . 10 1 5 4 12 1 9 . 12 . 20 6 30 5 1 1 10 1 . 4 . 2 4 10 13 14 7 Largest Group 20 | . . 5 6 6 5 1 5 9 6 3 4 1 7 2 20 18 18 17 18 15 13 13 6 5 5 4 3 4 4 7 2 Highest-Rated Group 990 | . . 56 122 122 93 142 130 258 162 120 122 32 269 64 810 703 727 926 990 742 710 710 301 272 236 193 176 220 192 399 100 Highest-Rated Ally 159 | . . 23 45 45 29 142 26 32 49 40 39 32 46 32 50 47 159 159 159 96 96 96 96 96 49 64 64 64 64 69 69 Total Orders 42 | . . . . . . . . 3 . . . . . 1 . . 1 . . 1 . 2 3 . 1 . . 4 . 7 19 STAY 6 | . . . . . . . . . . . . . . . . . 1 . . 1 . 1 . . 1 . . . . 2 . FOLLOW 6 | . . . . . . . . . . . . . . . . . . . . . . 1 . . . . . . . 1 4 AID 1 | . . . . . . . . . . . . . . . . . . . . . . . . . . . . 1 . . . EXPLORE 18 | . . . . . . . . 1 . . . . . . . . . . . . . . 2 . . . . 3 . 3 9 RETURN 11 | . . . . . . . . 2 . . . . . 1 . . . . . . . . 1 . . . . . . 1 6 Ally Attacks 1335 | . . 15 8 33 41 22 3 11 55 11 38 5 79 5 16 198 124 67 27 47 119 97 12 51 . 39 12 29 44 104 23 Total Damage 37057 | . . 453 213 1022 781 415 33 869 1154 296 952 44 1905 181 389 4287 2814 1655 1184 1114 4404 3154 380 1036 . 1322 645 946 1343 3460 606 Kills 255 | . . 4 2 9 5 2 1 6 13 3 13 . 23 1 1 30 19 10 4 6 25 17 2 11 . 7 2 3 9 21 6 Allies Corrupted 8 | . . . . . . . . . . . . . . . . 1 1 . . 4 . . . 1 . . . . . 1 . Allies Melted 4 | . . . . . . . . . . . . . . . . . 2 . . . . . . . . 1 . . 1 . . X0-1V1 Amusement Gains 282 | . 17 20 20 25 . 20 . . 10 . . . . 5 . . . . . 35 10 . 10 . 25 . 50 . . 30 5 Good Acts 144 | . 4 9 3 2 10 6 5 1 6 . 5 3 3 3 1 5 20 4 . . 8 3 3 4 . 5 6 5 6 9 5 Bad Acts 85 | . 2 6 . 2 9 7 . 1 9 1 5 . 3 . 1 3 1 . . . 1 1 5 2 . 1 2 . 6 7 10 Intel | -11 -10 -9 -9 -8 -8 -8 -8 -7 -7 -7 -7 -6 -6 -5 -5 -5 -5 -5 -5 -5 -5 -4 -4 -4 -4 -3 -3 -3 -3 -2 -1 ------- Run | Yrd Mat Mat Min Mat Gar Mat Gar Fac Gar Fac Gar Fac Gar Fac Was Fac Ext Cet Arc Hub Gar Fac Upp Upp Zhi Pro Res Tes Gar Res Acc Active Infowar (turns) 17559 | 50 585 587 176 71 . 378 . 78 . 179 55 437 1189 303 510 704 1731 375 104 288 965 540 587 714 270 658 791 895 1695 1605 1039 Optics 15000 | . . . . . . . . . . . . 37 1189 303 510 704 1731 375 104 288 965 540 587 714 270 658 791 895 1695 1605 1039 Sensors 1323 | . . . . . . . . . . . . . . . . . . . . . . . . . . . . 214 5 883 221 Terrain 684 | . . . . . . . . . . . . . . . . . . . . . . . . . . . . . 2 . 682 Seismic 4005 | 50 585 587 176 71 . 378 . 78 . 179 55 437 464 . . 506 237 . . 154 48 . . . . . . . . . . Cloaking 2 | . . . . . . . . . . . . . . . . . . . . . . . 2 . . . . . . . . Jamming 3791 | . . . . . . . . . . . . . . . . . . . . . . . . . . . 791 893 189 927 991 Robot Analysis Total 4 | . . . . . . . . . . . . . . . . . . . . . . . . . 4 . . . . . . Derelict Logs Recovered 3 | . . . 1 . . . . . . . . . . . . . . . . . . . 1 1 . . . . . . . Drone Launches 19 | . . . . . . . . 2 . . . . . 2 . . . . . . . . 2 . . . . 3 . 3 7 Drone Recoveries 16 | . . . . . . . . 2 . . . . . 2 . . . . . . . . 2 . . . . 2 . 3 5 Exploration | -11 -10 -9 -9 -8 -8 -8 -8 -7 -7 -7 -7 -6 -6 -5 -5 -5 -5 -5 -5 -5 -5 -4 -4 -4 -4 -3 -3 -3 -3 -2 -1 ------------- Run | Yrd Mat Mat Min Mat Gar Mat Gar Fac Gar Fac Gar Fac Gar Fac Was Fac Ext Cet Arc Hub Gar Fac Upp Upp Zhi Pro Res Tes Gar Res Acc Turns Passed 23444 | 86 717 880 382 593 1306 852 452 124 1259 179 1102 444 1189 303 510 704 1731 375 104 288 965 540 587 714 270 658 791 895 1729 1605 1110 Spaces Moved 10678 | 62 382 379 178 330 736 486 238 62 604 100 361 183 393 109 250 340 760 177 46 145 470 305 332 371 155 333 397 381 545 620 448 Core 6 | 5 . . . . . . . . . . . . . . . . . . . . . . . . . . . . . . 1 Treads 6629 | . . 9 . . 1 . 2 . 365 100 361 183 393 109 250 340 760 177 46 145 470 305 332 371 155 333 397 381 545 86 13 Legs . | . . . . . . . . . . . . . . . . . . . . . . . . . . . . . . . . Wheels 3891 | 57 382 370 178 330 735 486 236 62 239 . . . . . . . . . . . . . . . . . . . . 534 282 Hover . | . . . . . . . . . . . . . . . . . . . . . . . . . . . . . . . . Flight 152 | . . . . . . . . . . . . . . . . . . . . . . . . . . . . . . . 152 Fastest Speed 45 | 50 90 125 125 135 135 135 135 135 135 160 160 220 220 240 160 160 160 160 160 160 160 160 160 160 160 160 160 165 245 165 45 Average Speed 170 | 86 125 131 177 135 135 136 142 146 153 160 212 220 238 242 184 163 181 163 160 160 160 160 160 160 160 160 174 187 249 190 177 Slowest Speed 2050 | 100 175 280 205 135 325 150 330 150 330 160 240 220 240 245 245 240 240 240 160 160 160 160 160 160 160 160 255 245 255 360 2050 Overloaded Moves . | . . . . . . . . . . . . . . . . . . . . . . . . . . . . . . . . Propulsion Burnouts . | . . . . . . . . . . . . . . . . . . . . . . . . . . . . . . . . Robots Hopped 4 | . . . . . . . . . . . . . . . . . . . . . . . . . . . . . . . 4 Potential Cave-ins 3 | . . . . . . . . . . . . . . . . . . . . . . . . . . . . . 3 . . Cave-ins Triggered . | . . . . . . . . . . . . . . . . . . . . . . . . . . . . . . . . Teleports 1 | . . . . . . . . . . . . . . . . . . . . . . . . . . . . 1 . . . Exploration Rate (%) 46 | 5 71 48 36 46 77 52 46 4 75 4 71 8 52 7 91 11 88 73 79 27 57 7 60 67 61 67 14 58 69 29 22 Regions Visited 31 Branch Regions 10 Pre-discovered Areas 7 | . 1 . 1 . . . . . . . . . . . . . . . . . . . 1 . 3 1 . . . . . Known Exits Taken 13 | . 1 1 . 1 . 1 . 1 . 1 . 1 . . . . . . . 1 . 1 . . . 1 1 1 . 1 . Unknown Exits Taken 9 | 1 . . 1 . . . . . . . . . . . . 1 1 1 1 . . . 1 1 1 . . . . . . Scrap Searched 8 | . . . . . . . . . . . . . . . . . . . . . . . 3 4 . 1 . . . . . Spaces Dug 79 | . . . . . 3 4 . 3 . 2 . 1 7 . . 19 . . . 1 2 . . 2 . 10 12 2 . 10 1 Terrain Destroyed 432 | . . . . 3 5 9 . 3 . 2 . 4 7 . 1 27 5 5 8 2 5 . 7 12 1 15 12 22 16 37 224 Melee 31 | . . . . . 3 4 . 3 . 2 . . 7 . . 7 . . . . 1 . . . . . 3 1 . . . Projectile 161 | . . . . . . . . . . . . 1 . . 1 20 5 5 8 2 4 . 7 12 1 15 9 3 16 37 15 AOE 238 | . . . . 3 2 5 . . . . . 3 . . . . . . . . . . . . . . . 18 . . 207 Terrain Rammed . | . . . . . . . . . . . . . . . . . . . . . . . . . . . . . . . . Walls Destroyed . | . . . . . . . . . . . . . . . . . . . . . . . . . . . . . . . . Machines Disabled . | . . . . . . . . . . . . . . . . . . . . . . . . . . . . . . . . Actions | -11 -10 -9 -9 -8 -8 -8 -8 -7 -7 -7 -7 -6 -6 -5 -5 -5 -5 -5 -5 -5 -5 -4 -4 -4 -4 -3 -3 -3 -3 -2 -1 --------- Run | Yrd Mat Mat Min Mat Gar Mat Gar Fac Gar Fac Gar Fac Gar Fac Was Fac Ext Cet Arc Hub Gar Fac Upp Upp Zhi Pro Res Tes Gar Res Acc Total 14250 | 78 545 643 230 445 957 609 299 88 795 113 563 215 577 145 295 439 1031 241 66 186 623 352 368 450 173 410 467 512 783 904 648 Wait 925 | . 107 116 23 64 61 35 9 16 22 4 25 . 14 . 8 34 65 23 11 16 56 24 . 32 2 36 2 21 39 32 28 Move 10644 | 61 381 378 177 330 735 486 237 62 603 100 360 182 392 109 249 339 759 176 45 144 468 304 331 370 154 332 396 381 544 619 440 Hop 4 | . . . . . . . . . . . . . . . . . . . . . . . . . . . . . . . 4 Pick Up 239 | 4 15 28 7 12 19 6 . . 16 1 9 3 6 5 7 2 8 5 2 2 2 6 4 1 1 1 11 11 9 22 14 Fast Attach 125 | 7 1 2 . 2 3 7 . 1 10 1 10 6 2 9 5 1 4 6 . . 1 . 7 3 5 2 4 5 4 9 8 Attach 103 | . 1 5 1 3 4 2 3 2 3 . 6 3 3 1 . . 3 1 . 1 2 2 . . 1 3 3 8 4 11 27 Detach 21 | . 1 . . . . 3 . 2 . . 1 . 1 . 1 . 1 . . . . . . . 1 2 . 1 1 . 6 Swap 277 | . 1 29 7 7 14 13 7 . 21 1 15 4 5 3 4 12 8 7 . 11 9 6 6 4 . 8 4 10 20 31 10 Drop 262 | . 1 27 7 11 20 10 . . 23 1 6 7 5 13 15 2 9 8 2 1 . 4 10 4 5 2 13 15 10 22 9 Fire 1112 | 6 37 58 8 15 50 38 35 . 59 2 84 10 54 3 1 41 59 15 6 11 38 4 9 23 2 24 23 56 87 156 98 Melee 103 | . . . . 1 4 9 1 5 31 3 . . 12 . 5 7 8 . . . 1 . 1 . 2 . 7 4 . 2 . Ram . | . . . . . . . . . . . . . . . . . . . . . . . . . . . . . . . . Kick . | . . . . . . . . . . . . . . . . . . . . . . . . . . . . . . . . Crush 12 | . . . . . . . . . . . . . . 2 . 1 5 . . . . 2 . . . . 2 . . . . Escape Stasis 45 | . . . . . 3 . 7 . 5 . 10 . 4 . . . . . . . . . . . . . 2 . 10 . 4 Rewire 378 | . . . . . 44 . . . 2 . 37 . 79 . . . 102 . . . 46 . . 13 . . . . 55 . . Trap . | . . . . . . . . . . . . . . . . . . . . . . . . . . . . . . . . Miscellaneous . | . . . . . . . . . . . . . . . . . . . . . . . . . . . . . . . . Route ------- -11/Scrapyard -10/Materials (discovered 5 exits: *Mat x2 / [*Min x2] / [*Sub]) -9/Materials (discovered 3 exits: *Mat / *Min x2) -9/Mines -8/Materials (discovered 2 exits: *Fac / Gar) -8/Garrison (discovered 3 exits: *Mat x3) -8/Materials -8/Garrison (discovered 3 exits: *Fac x3) -7/Factory -7/Garrison (discovered 3 exits: *Fac x3) -7/Factory (discovered 2 exits: [*Low] / Gar) -7/Garrison (discovered 3 exits: *Fac x3) -6/Factory (discovered 2 exits: Fac / Gar) -6/Garrison (discovered 2 exits: *Fac x2) -5/Factory -5/Waste -5/Factory (discovered 3 exits: *Fac / Upp / *Ext) -5/Extension (discovered 3 exits: *Fac x2 / *Cet) -5/Cetus (discovered 3 exits: *Fac x2 / [*Arc]) -5/Archives (discovered 3 exits: *Fac / *Hub x2) -5/Hub_04(d) -5/Garrison (discovered 2 exits: *Fac x2) -4/Factory (discovered 3 exits: Res / *Upp x2) -4/Upper Caves -4/Upper Caves -4/Zhirov -3/Proximity Caves -3/Research (discovered 3 exits: *Res x2 / *Tes) -3/Testing (discovered 2 exits: Res / Gar) -3/Garrison (discovered 2 exits: *Res x2) -2/Research -1/Access History --------- Turn | Location | Event 17 | -11/Scrapyard | Discovered new exit (range 15) 87 | -11/Scrapyard | Entered Materials 221 | -10/Materials | Discovered new exit (range 15) 222 | -10/Materials | Discovered new exit (range 15) 303 | -10/Materials | Build established: Mutant 454 | -10/Materials | Discovered new exit (range 7) 463 | -10/Materials | Prayed at D.C.S.S. Altar Unit 506 | -10/Materials | X0-1V1 activates XOMVISION 520 | -10/Materials | Energy generation permanently improved by X0-1V1 (+10; -100 max core) 533 | -10/Materials | Identified exit to Materials 533 | -10/Materials | X0-1V1 revealed exit location to -9/Materials 628 | -10/Materials | X0-1V1 announced a LAN party 687 | -10/Materials | Derelicts attacked the area 799 | -10/Materials | Discovered exit to Materials (range 3) 804 | -10/Materials | Entered another Materials area 804 | -9/Materials | Evolved 2 slots: Utility x2 904 | -9/Materials | Weapon slot count temporarily expanded by X0-1V1 (+1) 1012 | -9/Materials | Matter capacity permanently improved by X0-1V1 (+200; -100 max core) 1186 | -9/Materials | Discovered new exit (range 16) 1376 | -9/Materials | Discovered new exit (range 11) 1473 | -9/Materials | X0-1V1 sent you to a vault 1478 | -9/Materials | Discovered new exit (range 15) 1640 | -9/Materials | Identified exit to Mines 1660 | -9/Materials | Core integrity restored by X0-1V1 (+58) 1684 | -9/Materials | Entered Mines 1684 | -9/Mines | Accompanied by 3 allies 1732 | -9/Mines | Met a Derelict bent on vengeance 1792 | -9/Mines | Met a Derelict who couldn't figure out how to use a Trap Extractor 1910 | -9/Mines | Assisted by bots powering up and referring to "LRC-V3" 2029 | -9/Mines | Discovered new exit (range 9) 2034 | -9/Mines | Utility slot count permanently improved by X0-1V1 (+1) 2056 | -9/Mines | Assembled infested the area 2066 | -9/Mines | Entered Materials 2066 | -8/Materials | Accompanied by 6 allies 2066 | -8/Materials | Evolved 2 slots: Propulsion x1, Weapon x1 2199 | -8/Materials | Met 7R-MNS 2316 | -8/Materials | X0-1V1 activates XOMVISION 2493 | -8/Materials | Discovered new exit (range 16) 2523 | -8/Materials | Identified exit to Factory 2534 | -8/Materials | X0-1V1 sent hostile L-31 Rogue (x1) 2659 | -8/Materials | Identified exit to Garrison 2659 | -8/Materials | Entered Garrison 2707 | -8/Garrison | Triggered checkpoint 2719 | -8/Garrison | X0-1V1 mutated your Weapon slot to Propulsion slot 2835 | -8/Garrison | X0-1V1 destroyed Phase Generator 2835 | -8/Garrison | Phase Generator disabled 2906 | -8/Garrison | X0-1V1 mutated your Utility slot to Weapon slot 3048 | -8/Garrison | X0-1V1 sent allied L-31 Rogue (x2) 3079 | -8/Garrison | Triggered checkpoint 3099 | -8/Garrison | Triggered checkpoint 3192 | -8/Garrison | Discovered new exit (range 11) 3208 | -8/Garrison | Build established: Gunner 3245 | -8/Garrison | Triggered checkpoint 3289 | -8/Garrison | Triggered checkpoint 3337 | -8/Garrison | Discovered new exit (range 22) 3337 | -8/Garrison | Discovered new exit (range 84) 3337 | -8/Garrison | Discovered new exit (range 73) 3480 | -8/Garrison | X0-1V1 activates XOMVISION 3516 | -8/Garrison | Triggered checkpoint 3553 | -8/Garrison | X0-1V1 mutated your Weapon slot to Utility slot 3566 | -8/Garrison | Rescued a captive Derelict 3569 | -8/Garrison | Rescued a captive Derelict 3619 | -8/Garrison | Lost 3 allies 3640 | -8/Garrison | X0-1V1 upgraded ally (x2) 3645 | -8/Garrison | Triggered checkpoint 3686 | -8/Garrison | Installed Relay Interface Framework 3694 | -8/Garrison | Garrison Relay disabled 3741 | -8/Garrison | X0-1V1 activates XOMVISION 3840 | -8/Garrison | Build established: Mutant 3965 | -8/Garrison | Entered Materials 3965 | -8/Materials | Accompanied by 1 ally 4152 | -8/Materials | System corruption reached 10% 4172 | -8/Materials | Build established: Bothacker-Mutant 4211 | -8/Materials | X0-1V1 enhanced Transport squad support 4318 | -8/Materials | X0-1V1 sent allied H-71 Marshal (x1) 4319 | -8/Materials | Core integrity fell below 50% 4362 | -8/Materials | Destroyed 10 combat bots 4386 | -8/Materials | X0-1V1 foreshadows a heat wave 4561 | -8/Materials | Ambient heat levels rising (+10) 4624 | -8/Materials | Core integrity restored by X0-1V1 (+105) 4741 | -8/Materials | Ambient heat levels rising (+10) 4765 | -8/Materials | First assault squad dispatched 4817 | -8/Materials | Identified exit to Garrison 4817 | -8/Materials | Entered Garrison 4906 | -8/Garrison | Discovered exit to Factory (range 82) 4906 | -8/Garrison | Discovered exit to Factory (range 41) 4906 | -8/Garrison | Discovered exit to Factory (range 66) 4957 | -8/Garrison | Triggered checkpoint 5011 | -8/Garrison | Triggered checkpoint 5167 | -8/Garrison | Triggered checkpoint 5188 | -8/Garrison | X0-1V1 sent allied Guru (x5) 5207 | -8/Garrison | Expanded RIF knowledge: Command Fork 5269 | -8/Garrison | Entered Factory 5269 | -7/Factory | Accompanied by 5 allies 5269 | -7/Factory | Evolved 2 slots: Utility x2 5290 | -7/Factory | X0-1V1 sent you to a vault 5377 | -7/Factory | Identified exit to Garrison 5393 | -7/Factory | Garrison activated, responded to threat 5393 | -7/Factory | Entered Garrison 5393 | -7/Garrison | Accompanied by 6 allies 5403 | -7/Garrison | Triggered checkpoint 5440 | -7/Garrison | Expanded RIF knowledge: Signal Jamming 5539 | -7/Garrison | Triggered checkpoint 5621 | -7/Garrison | Triggered checkpoint 5627 | -7/Garrison | Triggered checkpoint 5645 | -7/Garrison | X0-1V1 upgraded ally (x3) 5647 | -7/Garrison | Triggered checkpoint 5685 | -7/Garrison | Lost 9 allies 5697 | -7/Garrison | X0-1V1 sent you into danger 5717 | -7/Garrison | Lost 3 parts (1n2u) 5788 | -7/Garrison | Discovered new exit (range 3) 5917 | -7/Garrison | X0-1V1 sent hostile B-36 Bruiser (x2) 6093 | -7/Garrison | Triggered checkpoint 6158 | -7/Garrison | Discovered new exit (range 10) 6163 | -7/Garrison | Identified exit to Factory 6163 | -7/Garrison | X0-1V1 revealed exit location to -7/Factory 6193 | -7/Garrison | Triggered checkpoint 6234 | -7/Garrison | Expanded RIF knowledge: Code Merge 6257 | -7/Garrison | Triggered checkpoint 6506 | -7/Garrison | Build established: Botlord-Mutant 6509 | -7/Garrison | Triggered checkpoint 6523 | -7/Garrison | Triggered checkpoint 6652 | -7/Garrison | Entered Factory 6652 | -7/Factory | Accompanied by 3 allies 6792 | -7/Factory | Discovered new exit (range 11) 6828 | -7/Factory | Identified exit to Garrison 6831 | -7/Factory | Entered Garrison 6831 | -7/Garrison | Accompanied by 1 ally 7008 | -7/Garrison | Triggered checkpoint 7021 | -7/Garrison | Triggered checkpoint 7029 | -7/Garrison | P-60 Hacker assimilated allied Guardian 4e 7032 | -7/Garrison | P-60 Hacker assimilated allied H5-6Q2(g) 7116 | -7/Garrison | X0-1V1 turns hostiles against one another 7121 | -7/Garrison | System corruption reached 10% 7125 | -7/Garrison | Triggered checkpoint 7133 | -7/Garrison | Weapon slot count temporarily expanded by X0-1V1 (+1) 7149 | -7/Garrison | P-60 Hacker assimilated allied S-27 Virus 7165 | -7/Garrison | Core integrity fell below 50% 7247 | -7/Garrison | Triggered checkpoint 7313 | -7/Garrison | Triggered checkpoint 7403 | -7/Garrison | Triggered checkpoint 7430 | -7/Garrison | Garrison Relay disabled 7432 | -7/Garrison | Build established: Botlord-Tank 7519 | -7/Garrison | Discovered new exit (range 12) 7734 | -7/Garrison | Garrison Relay disabled 7773 | -7/Garrison | Identified exit to Factory 7773 | -7/Garrison | X0-1V1 revealed exit location to -6/Factory 7806 | -7/Garrison | X0-1V1 mutated your Utility slot to Power slot 7830 | -7/Garrison | Build established: Botlord-Mutant 7836 | -7/Garrison | Discovered exit to Factory (range 15) 7882 | -7/Garrison | Expanded RIF knowledge: Command Fork 7933 | -7/Garrison | Entered Factory 7933 | -6/Factory | Accompanied by 1 ally 7933 | -6/Factory | Evolved 2 slots: Utility x2 8152 | -6/Factory | Identified exit to Factory 8152 | -6/Factory | X0-1V1 revealed exit location to -5/Factory 8353 | -6/Factory | Identified exit to Garrison 8377 | -6/Factory | Entered Garrison 8461 | -6/Garrison | X0-1V1 mutated your Propulsion slot to Utility slot 8538 | -6/Garrison | Weapon slot count temporarily expanded by X0-1V1 (+1) 8834 | -6/Garrison | Triggered checkpoint 8857 | -6/Garrison | Triggered checkpoint 8910 | -6/Garrison | Lost 5 allies 8991 | -6/Garrison | Expanded RIF knowledge: Autooverride 9065 | -6/Garrison | Triggered checkpoint 9148 | -6/Garrison | Discovered exit to Factory (range 12) 9195 | -6/Garrison | Triggered checkpoint 9239 | -6/Garrison | Triggered checkpoint 9351 | -6/Garrison | Triggered checkpoint 9407 | -6/Garrison | Found Relay Coupler [Proto] 9467 | -6/Garrison | Garrison Relay disabled 9544 | -6/Garrison | Discovered exit to Factory (range 10) 9566 | -6/Garrison | Entered Factory 9566 | -5/Factory | Accompanied by 2 allies 9566 | -5/Factory | Evolved 2 slots: Propulsion x1, Utility x1 9583 | -5/Factory | X0-1V1 sent you to a vault 9597 | -5/Factory | Found Chaos Jack 9632 | -5/Factory | Found Heavy Servo Lattice 9866 | -5/Factory | First assault squad dispatched 9869 | -5/Factory | Manually triggered Chute Trap 9869 | -5/Factory | Sucked down chute 9869 | -5/Factory | Entered Waste 9870 | -5/Waste | Joined by Warlord forces that had cleared the area 10029 | -5/Waste | A Compactor rumbled back to life 10029 | -5/Waste | Spotted C-40 Crusher 10035 | -5/Waste | Allies destroyed C-40 Crusher 10324 | -5/Waste | Discovered new exit (range 13) 10379 | -5/Waste | Entered Factory 10379 | -5/Factory | Accompanied by 18 allies 10386 | -5/Factory | X0-1V1 rewrote YD-3O5(s) IFF filter 10463 | -5/Factory | System corruption reached 10% 10651 | -5/Factory | X0-1V1 added 0b10 threat records associated with you (considerable) 10744 | -5/Factory | Lost 6 allies 10856 | -5/Factory | Discovered new exit (range 20) 10910 | -5/Factory | Discovered new exit (range 18) 10939 | -5/Factory | X0-1V1 sent you to a vault 11058 | -5/Factory | Identified exit to Upper Caves 11058 | -5/Factory | X0-1V1 revealed exit location to -5/Upper Caves 11083 | -5/Factory | Entered Extension 11083 | -5/Extension | Accompanied by 3 allies 11100 | -5/Extension | Lost 4 allies 11139 | -5/Extension | Rescued a captive Derelict 11145 | -5/Extension | Rescued a captive Derelict 11201 | -5/Extension | Rescued a captive Derelict 11202 | -5/Extension | Rescued a captive Derelict 11280 | -5/Extension | Rescued a captive Derelict 11281 | -5/Extension | Rescued a captive Derelict 11322 | -5/Extension | Rescued a captive Derelict 11363 | -5/Extension | Weapon slot count temporarily expanded by X0-1V1 (+4) 11571 | -5/Extension | X0-1V1 activates XOMVISION 11580 | -5/Extension | X0-1V1 destroyed Energy Cycler 11580 | -5/Extension | Energy Cycler disabled 11584 | -5/Extension | Rescued a captive Derelict 11587 | -5/Extension | Rescued a captive Derelict 11640 | -5/Extension | Spotted B-75 Beast 11663 | -5/Extension | Discovered new exit (range 19) 11663 | -5/Extension | Spotted B-75 Beast 11683 | -5/Extension | Allies destroyed B-75 Beast 11694 | -5/Extension | X0-1V1 upgraded ally (x3) 11695 | -5/Extension | X0-1V1 whisked you away to safety 11722 | -5/Extension | Lost 4 allies 11808 | -5/Extension | Discovered new exit (range 21) 11810 | -5/Extension | Discovered new exit (range 21) 12618 | -5/Extension | Rescued A7 12697 | -5/Extension | X0-1V1 activates XOMVISION 12814 | -5/Extension | Entered Cetus 12814 | -5/Cetus | Accompanied by 17 allies (A7) 12819 | -5/Cetus | Acquired a Cetus Manufacturing Module code from A7 12830 | -5/Cetus | Spotted Cetus Guard 12830 | -5/Cetus | Spotted Cetus Guard 12837 | -5/Cetus | Spotted Cetus Guard 12847 | -5/Cetus | Allies destroyed Cetus Guard 12848 | -5/Cetus | Spotted Cetus Guard 12857 | -5/Cetus | Allies destroyed Cetus Guard 12863 | -5/Cetus | Destroyed Cetus Guard 12869 | -5/Cetus | Allies destroyed Cetus Guard 12891 | -5/Cetus | Lost 3 allies 12945 | -5/Cetus | Started Cetus Manufacturing Module 12957 | -5/Cetus | Escorted A7 to Cetus Mainframe 12961 | -5/Cetus | Discovered new exit (range 24) 12970 | -5/Cetus | Manufactured an Enhanced Grunt 12972 | -5/Cetus | Identified exit to Factory 12972 | -5/Cetus | X0-1V1 revealed exit location to -4/Factory 12995 | -5/Cetus | Manufactured an Enhanced Grunt 12996 | -5/Cetus | Spotted Cetus Guard 12996 | -5/Cetus | Spotted Cetus Guard 12996 | -5/Cetus | Spotted Cetus Guard 12996 | -5/Cetus | Spotted Cetus Guard 12997 | -5/Cetus | Discovered exit to Factory (range 25) 13016 | -5/Cetus | Allies destroyed Cetus Guard 13017 | -5/Cetus | Allies destroyed Cetus Guard 13020 | -5/Cetus | Manufactured an Enhanced Grunt 13020 | -5/Cetus | Allies destroyed Cetus Guard 13026 | -5/Cetus | Allies destroyed Cetus Guard 13039 | -5/Cetus | Met Revision 17 13045 | -5/Cetus | Manufactured an Enhanced Grunt 13070 | -5/Cetus | Manufactured an Enhanced Grunt 13189 | -5/Cetus | Entered Archives 13189 | -5/Archives | Accompanied by 17 allies (A7) 13194 | -5/Archives | Received a hacking code to weaken MAIN.C 13243 | -5/Archives | Discovered new exit (range 21) 13251 | -5/Archives | Discovered new exit (range 19) 13253 | -5/Archives | Discovered exit to Factory (range 22) 13293 | -5/Archives | Entered Hub_04(d) 13293 | -5/Hub_04(d) | Accompanied by 15 allies 13314 | -5/Hub_04(d) | Network Hub disabled 13399 | -5/Hub_04(d) | Spotted Lightning 13402 | -5/Hub_04(d) | Spotted Lightning 13402 | -5/Hub_04(d) | Spotted Lightning 13424 | -5/Hub_04(d) | Allies destroyed Lightning 13430 | -5/Hub_04(d) | Allies destroyed Lightning 13431 | -5/Hub_04(d) | Allies destroyed Lightning 13436 | -5/Hub_04(d) | Found Prototype Processor 13462 | -5/Hub_04(d) | Lost 6 allies 13554 | -5/Hub_04(d) | Identified exit to Garrison 13581 | -5/Hub_04(d) | Entered Garrison 13581 | -5/Garrison | Accompanied by 8 allies 13637 | -5/Garrison | Triggered checkpoint 13737 | -5/Garrison | Triggered checkpoint 13765 | -5/Garrison | Spotted B-75 Beast 13768 | -5/Garrison | Weapon slot count temporarily expanded by X0-1V1 (+4) 13771 | -5/Garrison | Rewired B-75 Beast 13794 | -5/Garrison | Triggered checkpoint 13800 | -5/Garrison | Triggered checkpoint 13857 | -5/Garrison | Triggered checkpoint 13919 | -5/Garrison | Garrison Relay disabled 13951 | -5/Garrison | Discovered exit to Factory (range 11) 13969 | -5/Garrison | Triggered checkpoint 13991 | -5/Garrison | X0-1V1 activates XOMVISION 14099 | -5/Garrison | Build established: Botlord-Tank 14206 | -5/Garrison | Expanded RIF knowledge: Alert ID Control 14219 | -5/Garrison | X0-1V1 mutated your Utility slot to Weapon slot 14328 | -5/Garrison | Discovered exit to Factory (range 8) 14342 | -5/Garrison | Triggered checkpoint 14361 | -5/Garrison | Garrison Relay disabled 14385 | -5/Garrison | X0-1V1 destroyed Phase Generator 14385 | -5/Garrison | Phase Generator disabled 14546 | -5/Garrison | Entered Factory 14546 | -4/Factory | Accompanied by 13 allies 14546 | -4/Factory | Evolved 2 slots: Utility x2 14547 | -4/Factory | Identified Exp. Targeting Computer 14572 | -4/Factory | Identified exit to Upper Caves 14572 | -4/Factory | X0-1V1 revealed exit location to -4/Upper Caves 14779 | -4/Factory | Build established: Botlord-Mutant 14796 | -4/Factory | First assault squad dispatched 14803 | -4/Factory | Discovered exit to Upper Caves (range 8) 14947 | -4/Factory | Identified exit to Research 14947 | -4/Factory | X0-1V1 revealed exit location to -3/Research 14950 | -4/Factory | Lost 3 allies 15086 | -4/Factory | Entered Upper Caves 15086 | -4/Upper Caves | Accompanied by 6 allies 15128 | -4/Upper Caves | Found DCF Scrap (14 items) 15250 | -4/Upper Caves | X0-1V1 activates XOMVISION 15353 | -4/Upper Caves | Learned location of Quarantine (-2) 15437 | -4/Upper Caves | X0-1V1 sent you into danger 15646 | -4/Upper Caves | Discovered new exit (range 10) 15673 | -4/Upper Caves | Entered another Upper Caves area 15673 | -4/Upper Caves | Accompanied by 5 allies 15823 | -4/Upper Caves | Encountered a Warlord checkpoint 15905 | -4/Upper Caves | Forcibly received Sfc. Transmogifier from X0-1V1 16019 | -4/Upper Caves | Spotted B-86 Titan 16056 | -4/Upper Caves | X0-1V1 activates XOMVISION 16316 | -4/Upper Caves | Discovered new exit (range 14) 16375 | -4/Upper Caves | Learned Research machine intel 16387 | -4/Upper Caves | Entered Zhirov 16387 | -4/Zhirov | Accompanied by 5 allies 16387 | -4/Zhirov | Discovered new exit (range 3) 16417 | -4/Zhirov | Met Zhirov 16449 | -4/Zhirov | Learned location of Testing (-3) 16449 | -4/Zhirov | Learned location of Command (-1) 16468 | -4/Zhirov | Zhirov requested help retrieving the SGEMP Prototype 16498 | -4/Zhirov | Found Alien Artifact 16498 | -4/Zhirov | Identified Integrated Reactor 16498 | -4/Zhirov | Installed Integrated Reactor, increased core energy generation (+10) 16521 | -4/Zhirov | Found Alien Artifact 16654 | -4/Zhirov | Cloak Generator disabled 16654 | -4/Zhirov | Attacked by Zhirov 16657 | -4/Zhirov | Entered Proximity Caves 16657 | -3/Proximity Caves | Accompanied by 5 allies 16659 | -3/Proximity Caves | Spotter reported a threat 16734 | -3/Proximity Caves | System corruption reached 10% 16734 | -3/Proximity Caves | Spotter reported a threat 16787 | -3/Proximity Caves | Spotter reported a threat 16854 | -3/Proximity Caves | Spotted B-86 Titan 16878 | -3/Proximity Caves | Allies destroyed B-86 Titan 17149 | -3/Proximity Caves | Attracted the attention of an 0b10 base 17184 | -3/Proximity Caves | Build established: Botlord-Tank 17190 | -3/Proximity Caves | Lost 4 allies 17205 | -3/Proximity Caves | Learned location of 2 exits from Upper Caves 17205 | -3/Proximity Caves | Learned 8 Research zone layouts 17205 | -3/Proximity Caves | Learned Extension security intel 17205 | -3/Proximity Caves | Learned Extension terminal intel 17282 | -3/Proximity Caves | Attracted the attention of an 0b10 checkpoint 17294 | -3/Proximity Caves | X0-1V1 activates XOMVISION 17315 | -3/Proximity Caves | Entered Research 17315 | -3/Research | Accompanied by 1 ally 17315 | -3/Research | Evolved 2 slots: Utility x1, Weapon x1 17316 | -3/Research | Identified exit to Research 17316 | -3/Research | Identified exit to Testing 17317 | -3/Research | Loaded intel: 124 machine locations 17332 | -3/Research | X0-1V1 released a cloud of subatomizers 17515 | -3/Research | Revision forces began assault on 0b10 17604 | -3/Research | Met up with Revision 17++ 17698 | -3/Research | Fabricated Enh. Hardcell Cannon (x2) 17764 | -3/Research | Discovered exit to Research (range 8) 17844 | -3/Research | X0-1V1 redirected Transport squads to designated parking area 17964 | -3/Research | X0-1V1 activates XOMVISION 17976 | -3/Research | Found Prototype Hackware 18015 | -3/Research | Research terminal network offline 18090 | -3/Research | Spotted Striker 18091 | -3/Research | Spotted Striker 18093 | -3/Research | Spotted Striker 18106 | -3/Research | Entered Testing 18106 | -3/Testing | Accompanied by 1 ally 18128 | -3/Testing | Lost 3 allies 18156 | -3/Testing | Identified Exp. System Shield 18156 | -3/Testing | Central database locked down 18250 | -3/Testing | Build established: Botlord-Mutant 18301 | -3/Testing | Found Prototype Energy Cannon 18399 | -3/Testing | X0-1V1 revealed exit location to -2/Research 18438 | -3/Testing | Identified Transdimensional Reconstructor 18438 | -3/Testing | Warped through subspace 18464 | -3/Testing | Fabricated M-13 Machinist? 18466 | -3/Testing | Lost 4 allies 18642 | -3/Testing | Protovariant out of control (PY-AQ5DKW6MN4) 18642 | -3/Testing | Unleashed a protovariant (PY-AQ5DKW6MN4) 18652 | -3/Testing | Spotted PY-AQ5DKW6MN4 18669 | -3/Testing | Destroyed PY-AQ5DKW6MN4 18683 | -3/Testing | Found Prototype Protection 18777 | -3/Testing | System corruption reached 10% 18786 | -3/Testing | X0-1V1 whisked you away to safety 18943 | -3/Testing | Build established: Botlord-Tank 19001 | -3/Testing | Identified exit to Garrison 19001 | -3/Testing | Entered Garrison 19001 | -3/Garrison | Accompanied by 1 ally 19073 | -3/Garrison | Triggered checkpoint 19140 | -3/Garrison | Expanded RIF knowledge: Threat Obfuscation 19245 | -3/Garrison | X0-1V1 sent hostile G-67 Veteran (x3) 19290 | -3/Garrison | Garrison Relay disabled 19311 | -3/Garrison | Garrison Relay disabled 19431 | -3/Garrison | Triggered checkpoint 19461 | -3/Garrison | Spotted B-86 Titan 19588 | -3/Garrison | Triggered checkpoint 19604 | -3/Garrison | Destroyed B-86 Titan 19607 | -3/Garrison | X0-1V1 revealed exit location to -2/Research 19633 | -3/Garrison | Triggered checkpoint 19662 | -3/Garrison | Triggered checkpoint 20016 | -3/Garrison | Triggered checkpoint 20046 | -3/Garrison | Garrison Relay disabled 20177 | -3/Garrison | Learned Research security intel 20478 | -3/Garrison | Discovered exit to Research (range 11) 20549 | -3/Garrison | X0-1V1 vaporized surrounding terrain (radius 20) 20578 | -3/Garrison | Triggered checkpoint 20653 | -3/Garrison | Garrison Relay disabled 20730 | -3/Garrison | Entered Research 20730 | -2/Research | Accompanied by 4 allies 20730 | -2/Research | Evolved 2 slots: Power x1, Utility x1 20731 | -2/Research | X0-1V1 sent you to a vault 20758 | -2/Research | P-80 Master assimilated allied Terminator 9c 20777 | -2/Research | Garrison activated, responded to threat 20840 | -2/Research | Lost 3 allies 21141 | -2/Research | Lost 3 parts (1n1u1w) 21505 | -2/Research | X0-1V1 activates XOMVISION 21578 | -2/Research | System corruption reached 10% 21812 | -2/Research | Identified Centrium Heavy Armor Plating 21957 | -2/Research | Discovered new exit (range 17) 22002 | -2/Research | Identified exit to Access 22335 | -2/Research | Entered Access 22335 | -1/Access | Accompanied by 1 ally 22335 | -1/Access | Evolved 2 slots: Power x1, Utility x1 22339 | -1/Access | Identified Potential Cannon 22340 | -1/Access | X0-1V1 vaporized surrounding terrain (radius 22) 22456 | -1/Access | X0-1V1 enhanced Transport squad support 22610 | -1/Access | X0-1V1 sent you into danger 22943 | -1/Access | X0-1V1 added 0b10 threat records associated with you (major) 23183 | -1/Access | X0-1V1 sent allied X-82 Rainmaker (x2) 23217 | -1/Access | Lost 6 parts (4p1n1u) 23237 | -1/Access | P-80 Master assimilated allied X-82 Rainmaker 23329 | -1/Access | Core integrity fell below 50% 23345 | -1/Access | X0-1V1 turns hostiles against one another 23362 | -1/Access | Lost 18 parts (6n7u5w) 23374 | -1/Access | Released all parts (12) 23397 | -1/Access | Spotted B-99 Colossus 23445 | -1/Access | Self-destructed Last Messages --------------- 23374_ Released Adv. Remote Force Field. 23374_ Released Relay Coupler [Sentry]. 23374_ Released Lrn. Tractor Beam. 23374_ Released Helical Railgun. 23376_ Penetrated by Slug. 23377_ Acquired 10 matter. 23378_ J#0S QK9DNWYJ>6JMH7ZS6|O77DB>%N: VVSZT 23407_ ALERT: Potential suspicious activity detected, Programmers report to Access Zone 1I. 23420_ System corrupted: Impulse Thruster Array rejected. 23420_ Acquired Impulse Thruster Array. 23425_ C-30 ARC bursts open, deploying its payload. 23425_ G-73 Enforcer unfolds itself. 23426_ Detecting nearby Garrison Access. 23427_ Your Impulse Thruster Array briefly glows, restoring some integrity. X0-1V1's Piety Tracker suddenly appears amidst shimmering waves of color. 23435_ System corrupted: Heat flow error (+133). 23435_ X0-1V1 briefly opens a portal to the matter dimension. 23444_ Penetrated by Slug. Map ----- +----------------------------------------------------+ | ?????????????????????????????????????????????????? | | ?????????????????????????????????????????????????? | | ?????????????????????????????????????????????????? | | ?????????????????????????????????????????????????? | | ?????????????????????????????????????????????????? | | ?????????????????????????????????????????????????? | | ?????????????????????????????????????????????????? | | ?????????????????????????????????????????????????? | | ?????????????????????????????????????????????????? | | ?????????????????????????????????????????????????? | | ?????????????????????????????????????????????????? | | ?????????????????????????#???????????????????????? | | ?????????????????????????Y#######????????????????? | | ????????????????????????? #????????????????? | | ????????????????????????? #????????????????? | | ????????????????????????" #????????????????? | | ????????????????????????" #????????????????? | | ?????????????????????"""" #????????????????? | | ???????????????????#""""" #????????????????? | | ???????????????????#""""" #????????????????? | | ???????????????????#""""" #????????????????? | | ???????????????????# #????????????????? | | ???????????????????# ?????????????????? | | ????????????????????? ???????????????????? | | ??????????????????????? ?????????????????????? | | ??????????????###########@#############+####?????? | | ??????????????# ?????? | | ??????????????# #?????? | | ??????????????# #?????? | | ??????????????+ #?????? | | ??????????????# #?????? | | ??????????????# s #?????? | | ??????????????# ss #?????? | | ??????????????# s########## ######+###??????? | | ??????????????# #????????? #???????????????? | | ??????????????# #??????????#???????????????? | | ??????????????# #??????????????????????????? | | ??????????????# #??????????????????????????? | | ??????????????# %#??????????????????????????? | | ??????????????# #??????????????????????????? | | ??????????????# #??????????????????????????? | | ??????????????# #??????????????????????????? | | ??????????????# #??????????????????????????? | | ??????????????# #??????????????????????????? | | ??????????????# #??????????????????????????? | | ??????????????# #??????????????????????????? | | ??????????????# #??????????????????????????? | | ??????????????#^ ^ ^ #??????????????????????????? | | ??????????????#! #??????????????????????????? | | ??????????????# #??????????????????????????? | +----------------------------------------------------+ Best States ------------- Heat Dissipation 114 Energy Generation 99 Energy Capacity 3200 Matter Stores 1200 Matter Capacity 1200 Sight Range 28 Robot Scan Range 16 Terrain Scan Range 24 Terrain Scan Density 10 Jamming Range 16 Armor Coverage 1200 Resistance: KI 33 Resistance: TH 10 Core Shielding 40 Utility Shielding 90 Weapon Cycling 25 Evasion (%) 61 Targeting Accuracy 12 Core Analysis 6 Recoil Reduction 4 Energy Filtering 30 Relay Coupler Types 5 Relay Coupler Value 277 Authchip Count 1 Item Schematics ----------------- Med. Storage Unit | -5/Factory | Extracted Tesla Rifle | -5/Extension | Hacked Assault Drone Bay | -4/Zhirov | Free Exp. Heat Sink | -4/Zhirov | Free Exp. Optical Array | -4/Zhirov | Free Imp. Arc Thrower | -4/Zhirov | Free Adv. Heavy Siege Treads | -3/Research | Hacked Robot Schematics ------------------ M-13 Machinist | -10/Materials | Hacked Fabricated ------------ Enh. Hardcell Cannon | x2 | -3/Research | Preloaded M-13 Machinist | x1 | -3/Testing | Authchip Repaired ---------- Nothing Studied --------- Lgt. Treads | -9/Materials | Hacked Wheel | -9/Materials | Hacked Com. Wheel | -9/Materials | Hacked Com. HERF Cannon | -3/Testing | Hacked Hyp. Mass Driver | -3/Testing | Hacked Alien Tech Used ----------------- Integrated Reactor Transdimensional Reconstructor Achievements -------------- None Challenges ------------ None Game ------ Seed DisposableParticleCannon Manual? 0 Play Time 06:37:36 Cumulative 322.6 hours Start 2026.07.11 @ 12:45:34 End 2026.07.12 @ 17:55:03 Sessions 45 Manual Loads 0 Difficulty Rogue Special Mode None Game No. 127 Rogue 122 Adventurer 5 Explorer 0 Win Type - Total 8 Types 4/0/2/1/0/0/0/0/0/1 Lore% 74 Gallery% 72 Achievement% 66 Wizard Run 0 Options --------- Layout 0 ASCII 0 Keyboard 0 Movement Numpad Keybinds 0 Fullscreen 1 Font 18/SmallcapsGlow Map View 76x50 Zoom Use 0% Tactical HUD 1 Map Filters NONE Filters NONE Steam 1 RUN: df86a075-f789-439e-b721-589ebbee4cd1